Workbook

Sheet Levies
C1: FY 2011 School District Outstanding Property Tax Levies and Maximum Levy Limitations
B2: Select School District:
H3: =NOW() -> 2010-12-08T09:05:42.680
B4: =VLOOKUP(Name!D2,Name!A3:B384,2,FALSE) -> 5463
C6: School District Maximums | G6: Iowa Code
C7: Max Total $ | D7: Max Total Rate | E7: Max Surtax | F7: Final Year | G7: Authorized Maximums | H7: Reference
B8: Instructional Support Authority | C8: =VLOOKUP(Name!$D$2,Data!$1:$1048576,4,FALSE) -> 0 | D8: =VLOOKUP(Name!$D$2,Data!$1:$1048576,5,FALSE) -> 0.1 | E8: =VLOOKUP(Name!$D$2,Data!$1:$1048576,6,FALSE) -> 0.2 | F8: =VLOOKUP(Name!$D$2,Data!$1:$1048576,7,FALSE) -> 2014 | G8: 10% of regular program | H8: 257.18
B9: Ed Improvement Authority | C9: =VLOOKUP(Name!$D$2,Data!$1:$1048576,8,FALSE) -> 0 | D9: =VLOOKUP(Name!$D$2,Data!$1:$1048576,9,FALSE) -> 0 | E9: na | F9: vote to rescind | G9: max % authorized by electors | H9: 257.29
B10: General Fund (Total w/ISL & Ed Imp) | F10: annual | G10: formula based | H10: Chapter 257
B11: Management | F11: annual | G11: limited by use of funds | H11: 298.4
B12: Amana Library | D12: =VLOOKUP(Name!$D$2,Data!$1:$1048576,10,FALSE) -> 0 | F12: vote to rescind | G12: $.20 property tax limit | H12: 298.7
B13: Voted Physical Plant & Equipment | C13: =VLOOKUP(Name!$D$2,Data!$1:$1048576,11,FALSE) -> 0 | D13: =VLOOKUP(Name!$D$2,Data!$1:$1048576,12,FALSE) -> 1.34 | E13: na | F13: =VLOOKUP(Name!$D$2,Data!$1:$1048576,13,FALSE) -> 2020 | G13: $1.34 property tax limit | H13: 298.2
B14: Regular Physical Plant & Equipment | F14: annual | G14: $.33 property tax limit | H14: 298.2
B15: Public Education/Recreation (Playground) | D15: =VLOOKUP(Name!$D$2,Data!$1:$1048576,14,FALSE) -> 0 | F15: vote to rescind | G15: $.135 property tax limit | H15: 300.2
B16: Debt Service | D16: =VLOOKUP(Name!$D$2,Data!$1:$1048576,15,FALSE) -> 2.7 | F16: ballot determined | G16: $2.70/$4.05 property tax limit | H16: 298.18
C19: FY 2011 Property Tax | E19: FY 2011 Income Surtax
C20: Amount | D20: Rate | E20: Amount | F20: Rate
B21: Instructional Support Authority | C21: =VLOOKUP(Name!$D$2,Data!$1:$1048576,18,FALSE) -> 11668 | D21: =VLOOKUP(Name!$D$2,Data!$1:$1048576,19,FALSE) -> 0.04007 | E21: =VLOOKUP(Name!$D$2,Data!$1:$1048576,38,FALSE) -> 525047 | F21: =VLOOKUP(Name!$D$2,Data!$1:$1048576,39,FALSE) -> 0.11
B22: Ed Improvement Authority | C22: =VLOOKUP(Name!$D$2,Data!$1:$1048576,20,FALSE) -> 0 | D22: =VLOOKUP(Name!$D$2,Data!$1:$1048576,21,FALSE) -> 0 | E22: =VLOOKUP(Name!$D$2,Data!$1:$1048576,40,FALSE) -> 0 | F22: =VLOOKUP(Name!$D$2,Data!$1:$1048576,41,FALSE) -> 0
B24: General Fund (Total w/ISL & Ed Imp) | C24: =VLOOKUP(Name!$D$2,Data!$1:$1048576,16,FALSE) -> 4641504 | D24: =VLOOKUP(Name!$D$2,Data!$1:$1048576,17,FALSE) -> 15.94153
B25: Management | C25: =VLOOKUP(Name!$D$2,Data!$1:$1048576,22,FALSE) -> 449999 | D25: =VLOOKUP(Name!$D$2,Data!$1:$1048576,23,FALSE) -> 1.54555
B26: Amana Library | C26: =VLOOKUP(Name!$D$2,Data!$1:$1048576,26,FALSE) -> 0 | D26: =VLOOKUP(Name!$D$2,Data!$1:$1048576,27,FALSE) -> 0
B27: Voted Physical Plant & Equipment | C27: =VLOOKUP(Name!$D$2,Data!$1:$1048576,28,FALSE) -> 13703 | D27: =VLOOKUP(Name!$D$2,Data!$1:$1048576,29,FALSE) -> 0.04642 | E27: =VLOOKUP(Name!$D$2,Data!$1:$1048576,42,FALSE) -> 381852 | F27: =VLOOKUP(Name!$D$2,Data!$1:$1048576,43,FALSE) -> 0.08
B28: Regular Physical Plant & Equipment | C28: =VLOOKUP(Name!$D$2,Data!$1:$1048576,30,FALSE) -> 97413 | D28: =VLOOKUP(Name!$D$2,Data!$1:$1048576,31,FALSE) -> 0.33
B29: Public Education/Recreation (Playground) | C29: =VLOOKUP(Name!$D$2,Data!$1:$1048576,32,FALSE) -> 0 | D29: =VLOOKUP(Name!$D$2,Data!$1:$1048576,33,FALSE) -> 0
B30: Debt Service | C30: =VLOOKUP(Name!$D$2,Data!$1:$1048576,34,FALSE) -> 0 | D30: =VLOOKUP(Name!$D$2,Data!$1:$1048576,35,FALSE) -> 0
B31: Grand Total | C31: =VLOOKUP(Name!$D$2,Data!$1:$1048576,36,FALSE) -> 5202619 | D31: =VLOOKUP(Name!$D$2,Data!$1:$1048576,37,FALSE) -> 17.8635 | E31: =SUM(E21:E30) -> 906899 | F31: =SUM(F21:F30) -> 0.19

Sheet Name (hidden)
B2: Dist | C2: School | D2: 274
A3: 1 | B3: 0000
A4: 2 | B4: 18 | C4: ADAIR-CASEY
A5: 3 | B5: 27 | C5: ADEL-DESOTO-MINBURN
A6: 4 | B6: 9 | C6: AGWSR
A7: 5 | B7: 441 | C7: A-H-S-T
A8: 6 | B8: 63 | C8: AKRON-WESTFIELD
A9: 7 | B9: 72 | C9: ALBERT CITY-TRUESDALE
A10: 8 | B10: 81 | C10: ALBIA
A11: 9 | B11: 7918 | C11: ALBIA FROM RUSSELL
A12: 10 | B12: 99 | C12: ALBURNETT
A13: 11 | B13: 108 | C13: ALDEN
A14: 12 | B14: 126 | C14: ALGONA
A15: 13 | B15: 135 | C15: ALLAMAKEE
A16: 14 | B16: 153 | C16: ALLISON-BRISTOW
A17: 15 | B17: 171 | C17: ALTA
A18: 16 | B18: 225 | C18: AMES
A19: 17 | B19: 234 | C19: ANAMOSA
A20: 18 | B20: 243 | C20: ANDREW
A21: 19 | B21: 252 | C21: ANITA
A22: 20 | B22: 261 | C22: ANKENY
A23: 21 | B23: 270 | C23: ANTHON-OTO
A24: 22 | B24: 279 | C24: APLINGTON-PARKERSBURG
A25: 23 | B25: 333 | C25: ARMSTRONG-RINGSTED
A26: 24 | B26: 355 | C26: AR-WE-VA
A27: 25 | B27: 387 | C27: ATLANTIC
A28: 26 | B28: 414 | C28: AUDUBON
A29: 27 | B29: 423 | C29: AURELIA
A30: 28 | B30: 472 | C30: BALLARD
A31: 29 | B31: 504 | C31: BATTLE CREEK-IDA GROVE
A32: 30 | B32: 513 | C32: BAXTER
A33: 31 | B33: 540 | C33: BCLUW
A34: 32 | B34: 549 | C34: BEDFORD
A35: 33 | B35: 7914 | C35: BEDFORD FROM NEW MARKET
A36: 34 | B36: 576 | C36: BELLE PLAINE
A37: 35 | B37: 585 | C37: BELLEVUE
A38: 36 | B38: 594 | C38: BELMOND-KLEMME
A39: 37 | B39: 603 | C39: BENNETT
A40: 38 | B40: 609 | C40: BENTON
A41: 39 | B41: 621 | C41: BETTENDORF
A42: 40 | B42: 720 | C42: BONDURANT-FARRAR
A43: 41 | B43: 729 | C43: BOONE
A44: 42 | B44: 747 | C44: BOYDEN-HULL
A45: 43 | B45: 1917 | C45: BOYER VALLEY
A46: 44 | B46: 846 | C46: BROOKLYN-GUERNSEY-MALCOM
A47: 45 | B47: 882 | C47: BURLINGTON
A48: 46 | B48: 914 | C48: C AND M
A49: 47 | B49: 916 | C49: CAL
A50: 48 | B50: 918 | C50: CALAMUS/WHEATLAND
A51: 49 | B51: 936 | C51: CAMANCHE
A52: 50 | B52: 977 | C52: CARDINAL
A53: 51 | B53: 981 | C53: CARLISLE
A54: 52 | B54: 999 | C54: CARROLL
A55: 53 | B55: 1044 | C55: CEDAR FALLS
A56: 54 | B56: 1053 | C56: CEDAR RAPIDS
A57: 55 | B57: 1062 | C57: CENTER POINT-URBANA
A58: 56 | B58: 1071 | C58: CENTERVILLE
A59: 57 | B59: 1089 | C59: CENTRAL CITY
A60: 58 | B60: 1080 | C60: CENTRAL CLAYTON
A61: 59 | B61: 1082 | C61: CENTRAL CLINTON
A62: 60 | B62: 1093 | C62: CENTRAL DECATUR
A63: 61 | B63: 1079 | C63: CENTRAL LEE
A64: 62 | B64: 1095 | C64: CENTRAL LYON
A65: 63 | B65: 1107 | C65: CHARITON
A66: 64 | B66: 7919 | C66: CHARITON FROM RUSSELL
A67: 65 | B67: 1116 | C67: CHARLES CITY
A68: 66 | B68: 1134 | C68: CHARTER OAK-UTE
A69: 67 | B69: 1152 | C69: CHEROKEE
A70: 68 | B70: 1197 | C70: CLARINDA
A71: 69 | B71: 7916 | C71: CLARINDA FROM NEW MARKET
A72: 70 | B72: 1206 | C72: CLARION-GOLDFIELD
A73: 71 | B73: 1211 | C73: CLARKE
A74: 72 | B74: 1215 | C74: CLARKSVILLE
A75: 73 | B75: 1218 | C75: CLAY CENTRAL-EVERLY
A76: 74 | B76: 7921 | C76: CLAY CENTRAL-EVERLY FROM S CLAY
A77: 75 | B77: 2763 | C77: CLAYTON RIDGE
A78: 76 | B78: 216 | C78: CLEAR CREEK-AMANA (AMANA)
A79: 77 | B79: 1221 | C79: CLEAR CREEK-AMANA (CLEAR CREEK)
A80: 78 | B80: 1233 | C80: CLEAR LAKE
A81: 79 | B81: 1224 | C81: CLEARFIELD
A82: 80 | B82: 1278 | C82: CLINTON
A83: 81 | B83: 1332 | C83: COLFAX-MINGO
A84: 82 | B84: 1337 | C84: COLLEGE
A85: 83 | B85: 1350 | C85: COLLINS-MAXWELL
A86: 84 | B86: 1359 | C86: COLO-NESCO
A87: 85 | B87: 1368 | C87: COLUMBUS
A88: 86 | B88: 1413 | C88: COON RAPIDS-BAYARD
A89: 87 | B89: 1431 | C89: CORNING
A90: 88 | B90: 7915 | C90: CORNING FROM NEW MARKET
A91: 89 | B91: 1449 | C91: CORWITH-WESLEY
A92: 90 | B92: 1476 | C92: COUNCIL BLUFFS
A93: 91 | B93: 1503 | C93: CRESTON
A94: 92 | B94: 1576 | C94: DALLAS CENTER-GRIMES
A95: 93 | B95: 9007 | C95: DALLAS CENTER-GRIMES DEBT
A96: 94 | B96: 1602 | C96: DANVILLE
A97: 95 | B97: 1611 | C97: DAVENPORT
A98: 96 | B98: 1619 | C98: DAVIS COUNTY
A99: 97 | B99: 1638 | C99: DECORAH
A100: 98 | B100: 1675 | C100: DELWOOD
A101: 99 | B101: 1701 | C101: DENISON
A102: 100 | B102: 1719 | C102: DENVER
A103: 101 | B103: 1737 | C103: DES MOINES
A104: 102 | B104: 1782 | C104: DIAGONAL
A105: 103 | B105: 1791 | C105: DIKE-NEW HARTFORD (DIKE)
A106: 104 | B106: 4671 | C106: DIKE-NEW HARTFORD (NEW HARTFORD)
A107: 105 | B107: 9006 | C107: DIKE-NEW HARTFORD(NEW HARTFORD DEBT
A108: 106 | B108: 1854 | C108: DOWS
A109: 107 | B109: 1863 | C109: DUBUQUE
A110: 108 | B110: 1908 | C110: DUNKERTON
A111: 109 | B111: 1926 | C111: DURANT
A112: 110 | B112: 1944 | C112: EAGLE GROVE
A113: 111 | B113: 1953 | C113: EARLHAM
A114: 112 | B114: 1963 | C114: EAST BUCHANAN
A115: 113 | B115: 1965 | C115: EAST CENTRAL
A116: 114 | B116: 1967 | C116: EAST GREENE
A117: 115 | B117: 3582 | C117: EAST MARSHALL
A118: 116 | B118: 1970 | C118: EAST UNION
A119: 117 | B119: 1972 | C119: EASTERN ALLAMAKEE
A120: 118 | B120: 657 | C120: EDDYVILLE-BLAKESBURG
A121: 119 | B121: 1989 | C121: EDGEWOOD-COLESBURG
A122: 120 | B122: 2007 | C122: ELDORA-NEW PROVIDENCE
A123: 121 | B123: 2016 | C123: ELK HORN-KIMBALLTON
A124: 122 | B124: 2088 | C124: EMMETSBURG
A125: 123 | B125: 1647 | C125: ENGLISH VALLEYS (DEEP RIV-MILLERSB)
A126: 124 | B126: 2097 | C126: ENGLISH VALLEYS (ENGLISH VALLEYS)
A127: 125 | B127: 2113 | C127: ESSEX
A128: 126 | B128: 2124 | C128: ESTHERVILLE-LINCOLN CENTRAL
A129: 127 | B129: 2151 | C129: EXIRA
A130: 128 | B130: 2169 | C130: FAIRFIELD
A131: 129 | B131: 2205 | C131: FARRAGUT
A132: 130 | B132: 2295 | C132: FOREST CITY
A133: 131 | B133: 2313 | C133: FORT DODGE
A134: 132 | B134: 2322 | C134: FORT MADISON
A135: 133 | B135: 2349 | C135: FREDERICKSBURG
A136: 134 | B136: 2367 | C136: FREMONT
A137: 135 | B137: 2369 | C137: FREMONT-MILLS
A138: 136 | B138: 2376 | C138: GALVA-HOLSTEIN
A139: 137 | B139: 2403 | C139: GARNER-HAYFIELD
A140: 138 | B140: 2457 | C140: GEORGE-LITTLE ROCK
A141: 139 | B141: 2466 | C141: GILBERT
A142: 140 | B142: 2493 | C142: GILMORE CITY-BRADGATE
A143: 141 | B143: 2502 | C143: GLADBROOK-REINBECK
A144: 142 | B144: 2511 | C144: GLENWOOD
A145: 143 | B145: 2520 | C145: GLIDDEN-RALSTON
A146: 144 | B146: 2682 | C146: GMG
A147: 145 | B147: 2556 | C147: GRAETTINGER-TERRIL
A148: 146 | B148: 2664 | C148: GREENE
A149: 147 | B149: 2709 | C149: GRINNELL-NEWBURG
A150: 148 | B150: 2718 | C150: GRISWOLD
A151: 149 | B151: 2727 | C151: GRUNDY CENTER
A152: 150 | B152: 2754 | C152: GUTHRIE CENTER
A153: 151 | B153: 2772 | C153: HAMBURG
A154: 152 | B154: 2781 | C154: HAMPTON-DUMONT
A155: 153 | B155: 2826 | C155: HARLAN
A156: 154 | B156: 2834 | C156: HARMONY
A157: 155 | B157: 2846 | C157: HARRIS-LAKE PARK
A158: 156 | B158: 2862 | C158: HARTLEY-MELVIN-SANBORN
A159: 157 | B159: 2977 | C159: HIGHLAND
A160: 158 | B160: 2988 | C160: HINTON
A161: 159 | B161: 2766 | C161: HLV
A162: 160 | B162: 3029 | C162: HOWARD-WINNESHIEK
A163: 161 | B163: 3033 | C163: HUBBARD-RADCLIFFE
A164: 162 | B164: 3042 | C164: HUDSON
A165: 163 | B165: 3060 | C165: HUMBOLDT
A166: 164 | B166: 3996 | C166: IKM
A167: 165 | B167: 3105 | C167: INDEPENDENCE
A168: 166 | B168: 3114 | C168: INDIANOLA
A169: 167 | B169: 3119 | C169: INTERSTATE 35
A170: 168 | B170: 3141 | C170: IOWA CITY
A171: 169 | B171: 3150 | C171: IOWA FALLS
A172: 170 | B172: 3154 | C172: IOWA VALLEY
A173: 171 | B173: 3186 | C173: JANESVILLE
A174: 172 | B174: 3195 | C174: JEFFERSON-SCRANTON (JEFFERSON)
A175: 173 | B175: 5841 | C175: JEFFERSON-SCRANTON (SCRANTON)
A176: 174 | B176: 3204 | C176: JESUP
A177: 175 | B177: 3231 | C177: JOHNSTON
A178: 176 | B178: 3312 | C178: KEOKUK
A179: 177 | B179: 3330 | C179: KEOTA
A180: 178 | B180: 3348 | C180: KINGSLEY-PIERSON
A181: 179 | B181: 3375 | C181: KNOXVILLE
A182: 180 | B182: 3420 | C182: LAKE MILLS
A183: 181 | B183: 3465 | C183: LAMONI
A184: 182 | B184: 3537 | C184: LAURENS-MARATHON
A185: 183 | B185: 7922 | C185: LAURENS-MARATHON FROM S CLAY
A186: 184 | B186: 3555 | C186: LAWTON-BRONSON
A187: 185 | B187: 3600 | C187: LE MARS
A188: 186 | B188: 3609 | C188: LENOX
A189: 187 | B189: 3645 | C189: LEWIS CENTRAL
A190: 188 | B190: 3705 | C190: LINEVILLE-CLIO
A191: 189 | B191: 3715 | C191: LINN-MAR
A192: 190 | B192: 3744 | C192: LISBON
A193: 191 | B193: 3798 | C193: LOGAN-MAGNOLIA
A194: 192 | B194: 3816 | C194: LONE TREE
A195: 193 | B195: 3841 | C195: LOUISA-MUSCATINE
A196: 194 | B196: 3897 | C196: LU VERNE
A197: 195 | B197: 3906 | C197: LYNNVILLE-SULLY
A198: 196 | B198: 3942 | C198: MADRID
A199: 197 | B199: 3978 | C199: MALVERN
A200: 198 | B200: 4014 | C200: MANNING
A201: 199 | B201: 4023 | C201: MANSON-NORTHWEST WEBSTER
... 183 more rows

Sheet Data (hidden)
B1: 2 | C1: 3 | D1: 4 | E1: 5 | F1: 6 | G1: 7 | H1: 8 | I1: 9 | J1: 10 | K1: 11 | L1: 12 | M1: 13 | N1: 14 | O1: 15 | P1: 16 | Q1: 17 | R1: 18 | S1: 19 | T1: 20 | U1: 21 | V1: 22 | W1: 23 | X1: 24 | Y1: 25 | Z1: 26 | AA1: 27 | AB1: 28 | AC1: 29 | AD1: 30 | AE1: 31 | AF1: 32 | AG1: 33 | AH1: 34 | AI1: 35 | AJ1: 36 | AK1: 37 | AL1: 38 | AM1: 39 | AN1: 40 | AO1: 41 | AP1: 42 | AQ1: 43
B2: Dist | C2: School | D2: x073 ISL Max $ | E2: x072 ISL Max Rate | F2: x069 ISL MaxSur | G2: x071 ISL Final Yr | H2: x076 ED Max $ | I2: x075 Ed Max Rate | J2: x092 Amana Max | K2: x087 PPEL Max $ | L2: x086 PPEL Max Rate | M2: x085 PPEL Final | N2: x093 PERL Max | O2: x094 Debt Max | P2: x128 GF$ CALC | Q2: x145 GF rate | R2: X121 ISL $ | S2: ISL rate CALC | T2: X122 Ed $ | U2: Ed rate CALC | V2: X129 Mgt $ | W2: X146 Mgt rate | X2: X337 net tax val | Y2: X338 TIF val | Z2: X130 Amana $ CALC | AA2: X147 Amana rate | AB2: X134 VPPEL $ CALC | AC2: X149 VPPEL rate | AD2: X135 RPPEL $ CALC | AE2: X150 RPPEL rate | AF2: X140 PERL $ CALC | AG2: X152 PERL rate | AH2: X141 Debt $ CALC | AI2: X153 Debt rate | AJ2: X143 Total $ CALC | AK2: X155 Total rate CALC | AL2: X294 ISL sur $ | AM2: X307 ISL sur rate | AN2: X296 Ed sur $ | AO2: X308 Ed sur rate | AP2: X304 VPPEL sur $ | AQ2: X310 VPPEL sur rate
A3: 1
A4: 2 | B4: 18 | C4: ADAIR-CASEY | D4: 0 | E4: 0.1 | F4: 0.2 | G4: 2014 | H4: 0 | I4: 0 | J4: 0 | K4: 0 | L4: 1.34 | M4: 2019 | N4: 0 | O4: 2.7 | P4: =ROUND(($X4/1000)*Q4,0) -> 1280667 | Q4: 11.24825 | R4: 108163 | S4: =ROUND(R4/(X4/1000),5) -> 0.95001 | T4: 0 | U4: =ROUND(T4/(X4/1000),5) -> 0 | V4: =ROUND(($X4/1000)*W4,0) -> 70000 | W4: 0.61482 | X4: 113854744 | Y4: 2840131 | Z4: =ROUND(($X4/1000)*AA4,0) -> 0 | AA4: 0 | AB4: =ROUND((($X4+$Y4)/1000)*AC4,0) -> 97734 | AC4: 0.83752 | AD4: =ROUND((($X4+$Y4)/1000)*AE4,0) -> 38509 | AE4: 0.33 | AF4: =ROUND(($X4/1000)*AG4,0) -> 0 | AG4: 0 | AH4: =ROUND((($X4+$Y4)/1000)*AI4,0) -> 0 | AI4: 0 | AJ4: =P4+V4+Z4+AB4+AD4+AF4+AH4 -> 1486910 | AK4: =Q4+W4+AA4+AC4+AE4+AG4+AI4 -> 13.03059 | AL4: 58637 | AM4: 0.04 | AN4: 0 | AO4: 0 | AP4: 58637 | AQ4: 0.04
A5: 3 | B5: 27 | C5: ADEL-DESOTO-MINBURN | D5: 0 | E5: 0.1 | F5: 0 | G5: 2014 | H5: 0 | I5: 0 | J5: 0 | K5: 0 | L5: 0 | M5: 0 | N5: 0 | O5: 4.05 | P5: 4785052 | Q5: 14.63968 | R5: 594730 | S5: 1.81955 | T5: 0 | U5: =ROUND(T5/(X5/1000),5) -> 0 | V5: 489521 | W5: 1.49767 | X5: 326854985 | Y5: 26902683 | Z5: 0 | AA5: 0 | AB5: 0 | AC5: 0 | AD5: 116740 | AE5: 0.33 | AF5: 0 | AG5: 0 | AH5: 691143 | AI5: 1.95372 | AJ5: 6082456 | AK5: 18.42107 | AL5: 0 | AM5: 0 | AN5: 0 | AO5: 0 | AP5: 0 | AQ5: 0
A6: 4 | B6: 9 | C6: AGWSR | D6: 0 | E6: 0.1 | F6: 0.2 | G6: 2011 | H6: 0 | I6: 0 | J6: 0 | K6: 0 | L6: 1.33 | M6: 2013 | N6: 0 | O6: 2.7 | P6: 3035869 | Q6: 10.31539 | R6: 70841 | S6: 0.24071 | T6: 0 | U6: 0 | V6: 599999 | W6: 2.0387 | X6: 294304779 | Y6: 10283111 | Z6: 0 | AA6: 0 | AB6: 126840 | AC6: 0.41643 | AD6: 0 | AE6: 0 | AF6: 0 | AG6: 0 | AH6: 0 | AI6: 0 | AJ6: 3762708 | AK6: 12.77052 | AL6: 278261 | AM6: 0.08 | AN6: 0 | AO6: 0 | AP6: 278261 | AQ6: 0.08
A7: 5 | B7: 441 | C7: A-H-S-T | D7: 0 | E7: 0 | F7: 0 | G7: 0 | H7: 0 | I7: 0 | J7: 0 | K7: 0 | L7: 0 | M7: 0 | N7: 0 | O7: 2.7 | P7: 2433093 | Q7: 11.31789 | R7: 0 | S7: 0 | T7: 0 | U7: 0 | V7: 99999 | W7: 0.46516 | X7: 214977639 | Y7: 40157626 | Z7: 0 | AA7: 0 | AB7: 0 | AC7: 0 | AD7: 84195 | AE7: 0.33 | AF7: 0 | AG7: 0 | AH7: 430806 | AI7: 1.68854 | AJ7: 3048093 | AK7: 13.80159 | AL7: 0 | AM7: 0 | AN7: 0 | AO7: 0 | AP7: 0 | AQ7: 0
A8: 6 | B8: 63 | C8: AKRON-WESTFIELD | D8: 0 | E8: 0.1 | F8: 0.2 | G8: 2011 | H8: 0 | I8: 0 | J8: 0 | K8: 0 | L8: 0 | M8: 0 | N8: 0 | O8: 2.7 | P8: 1839526 | Q8: 13.71749 | R8: 14965 | S8: 0.1116 | T8: 0 | U8: 0 | V8: 179999 | W8: 1.34227 | X8: 134100772 | Y8: 8827992 | Z8: 0 | AA8: 0 | AB8: 0 | AC8: 0 | AD8: 47166 | AE8: 0.33 | AF8: 0 | AG8: 0 | AH8: 204104 | AI8: 1.42801 | AJ8: 2270795 | AK8: 16.81777 | AL8: 217950 | AM8: 0.09 | AN8: 0 | AO8: 0 | AP8: 0 | AQ8: 0
A9: 7 | B9: 72 | C9: ALBERT CITY-TRUESDALE | D9: 0 | E9: 0.1 | F9: 0 | G9: 2015 | H9: 0 | I9: 0 | J9: 0 | K9: 0 | L9: 1.34 | M9: 2021 | N9: 0 | O9: 0 | P9: 1262151 | Q9: 11.12397 | R9: 122952 | S9: 1.08364 | T9: 0 | U9: 0 | V9: 50001 | W9: 0.44068 | X9: 113462297 | Y9: 0 | Z9: 0 | AA9: 0 | AB9: 113462 | AC9: 1 | AD9: 37443 | AE9: 0.33 | AF9: 0 | AG9: 0 | AH9: 0 | AI9: 0 | AJ9: 1463057 | AK9: 12.89465 | AL9: 0 | AM9: 0 | AN9: 0 | AO9: 0 | AP9: 0 | AQ9: 0
A10: 8 | B10: 81 | C10: ALBIA | D10: 0 | E10: 0.1 | F10: 0.2 | G10: 2012 | H10: 0 | I10: 0 | J10: 0 | K10: 0 | L10: 0 | M10: 0 | N10: 0 | O10: 2.7 | P10: 3061582 | Q10: 14.61328 | R10: 22481 | S10: 0.1073 | T10: 0 | U10: 0 | V10: 274856 | W10: 1.31192 | X10: 209506817 | Y10: 0 | Z10: 0 | AA10: 0 | AB10: 0 | AC10: 0 | AD10: 0 | AE10: 0 | AF10: 0 | AG10: 0 | AH10: 0 | AI10: 0 | AJ10: 3336438 | AK10: 15.9252 | AL10: 415528 | AM10: 0.09 | AN10: 0 | AO10: 0 | AP10: 0 | AQ10: 0
A11: 9 | B11: 7918 | C11: ALBIA FROM RUSSELL | D11: 0 | E11: 0 | F11: 0 | G11: 0 | H11: 0 | I11: 0 | J11: 0 | K11: 0 | L11: 0 | M11: 0 | N11: 0 | O11: 0 | P11: 1607 | Q11: 14.61328 | R11: 0 | S11: 0 | T11: 0 | U11: 0 | V11: 144 | W11: 1.31192 | X11: 109951 | Y11: 0 | Z11: 0 | AA11: 0 | AB11: 0 | AC11: 0 | AD11: 0 | AE11: 0 | AF11: 0 | AG11: 0 | AH11: 0 | AI11: 0 | AJ11: 1751 | AK11: 15.9252 | AL11: 0 | AM11: 0 | AN11: 0 | AO11: 0 | AP11: 0 | AQ11: 0
A12: 10 | B12: 99 | C12: ALBURNETT | D12: 0 | E12: 0.1 | F12: 0 | G12: 2011 | H12: 0 | I12: 0 | J12: 0 | K12: 0 | L12: 0.67 | M12: 2014 | N12: 0 | O12: 2.7 | P12: 2029217 | Q12: 14.64275 | R12: 246143 | S12: 1.77616 | T12: 0 | U12: 0 | V12: 125001 | W12: 0.902 | X12: 138581678 | Y12: 3625920 | Z12: 0 | AA12: 0 | AB12: 95279 | AC12: 0.67 | AD12: 46929 | AE12: 0.33 | AF12: 0 | AG12: 0 | AH12: 209832 | AI12: 1.47553 | AJ12: 2506258 | AK12: 18.02028 | AL12: 0 | AM12: 0 | AN12: 0 | AO12: 0 | AP12: 0 | AQ12: 0
A13: 11 | B13: 108 | C13: ALDEN | D13: 0 | E13: 0.1 | F13: 0.2 | G13: 2014 | H13: 0 | I13: 0 | J13: 0 | K13: 0 | L13: 0.67 | M13: 2018 | N13: 0 | O13: 2.7 | P13: 1038988 | Q13: 9.38356 | R13: 26560 | S13: 0.23988 | T13: 0 | U13: 0 | V13: 75000 | W13: 0.67736 | X13: 110724278 | Y13: 0 | Z13: 0 | AA13: 0 | AB13: 74185 | AC13: 0.67 | AD13: 36539 | AE13: 0.33 | AF13: 0 | AG13: 0 | AH13: 0 | AI13: 0 | AJ13: 1224712 | AK13: 11.06092 | AL13: 106162 | AM13: 0.1 | AN13: 0 | AO13: 0 | AP13: 0 | AQ13: 0
A14: 12 | B14: 126 | C14: ALGONA | D14: 0 | E14: 0.1 | F14: 0.12 | G14: 2013 | H14: 0 | I14: 0 | J14: 0 | K14: 0 | L14: 0 | M14: 0 | N14: 0 | O14: 2.7 | P14: 5515584 | Q14: 11.43787 | R14: 56227 | S14: 0.1166 | T14: 0 | U14: 0 | V14: 299999 | W14: 0.62212 | X14: 482221246 | Y14: 1749478 | Z14: 0 | AA14: 0 | AB14: 0 | AC14: 0 | AD14: 159710 | AE14: 0.33 | AF14: 0 | AG14: 0 | AH14: 0 | AI14: 0 | AJ14: 5975293 | AK14: 12.38999 | AL14: 554387 | AM14: 0.07 | AN14: 0 | AO14: 0 | AP14: 0 | AQ14: 0
A15: 13 | B15: 135 | C15: ALLAMAKEE | D15: 0 | E15: 0 | F15: 0 | G15: 0 | H15: 0 | I15: 0 | J15: 0 | K15: 0 | L15: 1.1 | M15: 2013 | N15: 0 | O15: 2.7 | P15: 4000164 | Q15: 11.0299 | R15: 0 | S15: 0 | T15: 0 | U15: 0 | V15: 270001 | W15: 0.74449 | X15: 362665447 | Y15: 21166888 | Z15: 0 | AA15: 0 | AB15: 315 | AC15: 0.00082 | AD15: 126665 | AE15: 0.33 | AF15: 0 | AG15: 0 | AH15: 219702 | AI15: 0.57239 | AJ15: 4616847 | AK15: 12.6776 | AL15: 0 | AM15: 0 | AN15: 0 | AO15: 0 | AP15: 421900 | AQ15: 0.08
A16: 14 | B16: 153 | C16: ALLISON-BRISTOW | D16: 0 | E16: 0.1 | F16: 0.07 | G16: 2013 | H16: 0 | I16: 0 | J16: 0 | K16: 0 | L16: 0.67 | M16: 2016 | N16: 0 | O16: 2.7 | P16: 1042538 | Q16: 11.69069 | R16: 37213 | S16: 0.41729 | T16: 0 | U16: 0 | V16: 100000 | W16: 1.12137 | X16: 89176751 | Y16: 5090220 | Z16: 0 | AA16: 0 | AB16: 63159 | AC16: 0.67 | AD16: 31108 | AE16: 0.33 | AF16: 0 | AG16: 0 | AH16: 0 | AI16: 0 | AJ16: 1236805 | AK16: 13.81206 | AL16: 101182 | AM16: 0.07 | AN16: 0 | AO16: 0 | AP16: 0 | AQ16: 0
A17: 15 | B17: 171 | C17: ALTA | D17: 0 | E17: 0.1 | F17: 0.2 | G17: 2014 | H17: 0 | I17: 0 | J17: 0 | K17: 0 | L17: 0 | M17: 0 | N17: 0 | O17: 2.7 | P17: 2164369 | Q17: 11.8197 | R17: 22775 | S17: 0.12438 | T17: 0 | U17: 0 | V17: 150001 | W17: 0.81916 | X17: 183115374 | Y17: 84857 | Z17: 0 | AA17: 0 | AB17: 0 | AC17: 0 | AD17: 60456 | AE17: 0.33 | AF17: 0 | AG17: 0 | AH17: 187430 | AI17: 1.02309 | AJ17: 2562256 | AK17: 13.99195 | AL17: 223238 | AM17: 0.09 | AN17: 0 | AO17: 0 | AP17: 0 | AQ17: 0
A18: 16 | B18: 225 | C18: AMES | D18: 0 | E18: 0.1 | F18: 0.2 | G18: 2011 | H18: 0 | I18: 0 | J18: 0 | K18: 0 | L18: 1.34 | M18: 2018 | N18: 0 | O18: 4.05 | P18: 25014657 | Q18: 12.38988 | R18: 198236 | S18: 0.09819 | T18: 0 | U18: 0 | V18: 499995 | W18: 0.24765 | X18: 2018958800 | Y18: 7370 | Z18: 0 | AA18: 0 | AB18: 2705415 | AC18: 1.34 | AD18: 666259 | AE18: 0.33 | AF18: 0 | AG18: 0 | AH18: 698280 | AI18: 0.34586 | AJ18: 29584606 | AK18: 14.65339 | AL18: 2033447 | AM18: 0.05 | AN18: 0 | AO18: 0 | AP18: 0 | AQ18: 0
A19: 17 | B19: 234 | C19: ANAMOSA | D19: 0 | E19: 0.09 | F19: 0.08 | G19: 2014 | H19: 0 | I19: 0 | J19: 0 | K19: 0 | L19: 0.67 | M19: 2016 | N19: 0 | O19: 4.05 | P19: 3490288 | Q19: 12.68448 | R19: 23221 | S19: 0.08439 | T19: 0 | U19: 0 | V19: 273616 | W19: 0.99438 | X19: 275162080 | Y19: 9909328 | Z19: 0 | AA19: 0 | AB19: 190998 | AC19: 0.67 | AD19: 94074 | AE19: 0.33 | AF19: 0 | AG19: 0 | AH19: 0 | AI19: 0 | AJ19: 4048976 | AK19: 14.67886 | AL19: 454878 | AM19: 0.07 | AN19: 0 | AO19: 0 | AP19: 0 | AQ19: 0
A20: 18 | B20: 243 | C20: ANDREW | D20: 0 | E20: 0.1 | F20: 0.2 | G20: 2016 | H20: 0 | I20: 0 | J20: 0 | K20: 0 | L20: 1.34 | M20: 2016 | N20: 0 | O20: 0 | P20: 889786 | Q20: 12.4402 | R20: 495 | S20: 0.00692 | T20: 0 | U20: 0 | V20: 80000 | W20: 1.11849 | X20: 71525062 | Y20: 0 | Z20: 0 | AA20: 0 | AB20: 24319 | AC20: 0.34001 | AD20: 23603 | AE20: 0.33 | AF20: 0 | AG20: 0 | AH20: 0 | AI20: 0 | AJ20: 1017708 | AK20: 14.2287 | AL20: 128001 | AM20: 0.14 | AN20: 0 | AO20: 0 | AP20: 0 | AQ20: 0
A21: 19 | B21: 252 | C21: ANITA | D21: 0 | E21: 0.1 | F21: 0.2 | G21: 2012 | H21: 0 | I21: 0 | J21: 0 | K21: 0 | L21: 0.67 | M21: 2016 | N21: 0.135 | O21: 2.7 | P21: 1469265 | Q21: 15.22454 | R21: 26188 | S21: 0.27136 | T21: 0 | U21: 0 | V21: 30000 | W21: 0.31086 | X21: 96506395 | Y21: 0 | Z21: 0 | AA21: 0 | AB21: 64659 | AC21: 0.67 | AD21: 31847 | AE21: 0.33 | AF21: 13028 | AG21: 0.135 | AH21: 0 | AI21: 0 | AJ21: 1608799 | AK21: 16.6704 | AL21: 106853 | AM21: 0.1 | AN21: 0 | AO21: 0 | AP21: 0 | AQ21: 0
A22: 20 | B22: 261 | C22: ANKENY | D22: 0 | E22: 0.1 | F22: 0 | G22: 2014 | H22: 0 | I22: 0 | J22: 0 | K22: 0 | L22: 1.34 | M22: 2015 | N22: 0 | O22: 4.05 | P22: 35158689 | Q22: 16.38697 | R22: 3646651 | S22: 1.69965 | T22: 0 | U22: 0 | V22: 1999996 | W22: 0.93217 | X22: 2145527169 | Y22: 169648600 | Z22: 0 | AA22: 0 | AB22: 3102336 | AC22: 1.34 | AD22: 764008 | AE22: 0.33 | AF22: 0 | AG22: 0 | AH22: 7771165 | AI22: 3.35662 | AJ22: 48796194 | AK22: 22.34576 | AL22: 0 | AM22: 0 | AN22: 0 | AO22: 0 | AP22: 0 | AQ22: 0
A23: 21 | B23: 270 | C23: ANTHON-OTO | D23: 0 | E23: 0.1 | F23: 0.2 | G23: 2012 | H23: 0 | I23: 0 | J23: 0 | K23: 0 | L23: 0 | M23: 0 | N23: 0 | O23: 2.7 | P23: 1231594 | Q23: 14.02339 | R23: 68868 | S23: 0.78416 | T23: 0 | U23: 0 | V23: 0 | W23: 0 | X23: 87824288 | Y23: 0 | Z23: 0 | AA23: 0 | AB23: 0 | AC23: 0 | AD23: 28981 | AE23: 0.32999 | AF23: 0 | AG23: 0 | AH23: 0 | AI23: 0 | AJ23: 1260575 | AK23: 14.35338 | AL23: 61635 | AM23: 0.07 | AN23: 0 | AO23: 0 | AP23: 0 | AQ23: 0
A24: 22 | B24: 279 | C24: APLINGTON-PARKERSBURG | D24: 0 | E24: 0.1 | F24: 0.2 | G24: 2011 | H24: 0 | I24: 0 | J24: 0 | K24: 0 | L24: 0 | M24: 0 | N24: 0 | O24: 2.7 | P24: 2312334 | Q24: 11.8952 | R24: 88221 | S24: 0.45383 | T24: 0 | U24: 0 | V24: 250000 | W24: 1.28606 | X24: 194392213 | Y24: 16536555 | Z24: 0 | AA24: 0 | AB24: 0 | AC24: 0 | AD24: 69606 | AE24: 0.33 | AF24: 0 | AG24: 0 | AH24: 351150 | AI24: 1.66478 | AJ24: 2983090 | AK24: 15.17604 | AL24: 247574 | AM24: 0.07 | AN24: 0 | AO24: 0 | AP24: 0 | AQ24: 0
A25: 23 | B25: 333 | C25: ARMSTRONG-RINGSTED | D25: 0 | E25: 0.1 | F25: 0.1 | G25: 2012 | H25: 0 | I25: 0 | J25: 0 | K25: 0 | L25: 1.34 | M25: 2018 | N25: 0 | O25: 2.7 | P25: 2138022 | Q25: 13.9924 | R25: 43901 | S25: 0.28731 | T25: 0 | U25: 0 | V25: 140000 | W25: 0.91624 | X25: 152798838 | Y25: 7802328 | Z25: 0 | AA25: 0 | AB25: 135379 | AC25: 0.84295 | AD25: 52998 | AE25: 0.33 | AF25: 0 | AG25: 0 | AH25: 123815 | AI25: 0.77095 | AJ25: 2590214 | AK25: 16.85254 | AL25: 127724 | AM25: 0.08 | AN25: 0 | AO25: 0 | AP25: 79827 | AQ25: 0.05
A26: 24 | B26: 355 | C26: AR-WE-VA | D26: 0 | E26: 0.1 | F26: 0.08 | G26: 2011 | H26: 0 | I26: 0 | J26: 0 | K26: 0 | L26: 1.34 | M26: 2018 | N26: 0 | O26: 0 | P26: 1325966 | Q26: 8.99626 | R26: 55316 | S26: 0.3753 | T26: 0 | U26: 0 | V26: 375001 | W26: 2.54426 | X26: 147390818 | Y26: 4087753 | Z26: 0 | AA26: 0 | AB26: 202981 | AC26: 1.34 | AD26: 49988 | AE26: 0.33 | AF26: 0 | AG26: 0 | AH26: 0 | AI26: 0 | AJ26: 1953936 | AK26: 13.21052 | AL26: 115625 | AM26: 0.08 | AN26: 0 | AO26: 0 | AP26: 0 | AQ26: 0
A27: 25 | B27: 387 | C27: ATLANTIC | D27: 0 | E27: 0.1 | F27: 0.2 | G27: 2014 | H27: 0 | I27: 0 | J27: 0 | K27: 0 | L27: 0.85 | M27: 2012 | N27: 0 | O27: 2.7 | P27: 4759087 | Q27: 13.1354 | R27: 16005 | S27: 0.04417 | T27: 0 | U27: 0 | V27: 100001 | W27: 0.27601 | X27: 362309986 | Y27: 3468702 | Z27: 0 | AA27: 0 | AB27: 62288 | AC27: 0.17029 | AD27: 118015 | AE27: 0.32264 | AF27: 0 | AG27: 0 | AH27: 501896 | AI27: 1.37213 | AJ27: 5541287 | AK27: 15.27647 | AL27: 604231 | AM27: 0.1 | AN27: 0 | AO27: 0 | AP27: 241692 | AQ27: 0.04
A28: 26 | B28: 414 | C28: AUDUBON | D28: 0 | E28: 0.1 | F28: 0.2 | G28: 2013 | H28: 0 | I28: 0 | J28: 0 | K28: 0 | L28: 0.67 | M28: 2019 | N28: 0 | O28: 2.7 | P28: 2179078 | Q28: 11.59582 | R28: 68092 | S28: 0.36235 | T28: 0 | U28: 0 | V28: 150001 | W28: 0.79822 | X28: 187919282 | Y28: 1033928 | Z28: 0 | AA28: 0 | AB28: 126599 | AC28: 0.67 | AD28: 62355 | AE28: 0.33 | AF28: 0 | AG28: 0 | AH28: 100000 | AI28: 0.52923 | AJ28: 2618033 | AK28: 13.92327 | AL28: 223304 | AM28: 0.08 | AN28: 0 | AO28: 0 | AP28: 0 | AQ28: 0
A29: 27 | B29: 423 | C29: AURELIA | D29: 0 | E29: 0.1 | F29: 0.2 | G29: 2013 | H29: 0 | I29: 0 | J29: 0 | K29: 0 | L29: 0.67 | M29: 2020 | N29: 0 | O29: 0 | P29: 1220750 | Q29: 9.2002 | R29: 22898 | S29: 0.17257 | T29: 0 | U29: 0 | V29: 170000 | W29: 1.28121 | X29: 132687294 | Y29: 0 | Z29: 0 | AA29: 0 | AB29: 88900 | AC29: 0.67 | AD29: 43787 | AE29: 0.33 | AF29: 0 | AG29: 0 | AH29: 0 | AI29: 0 | AJ29: 1523437 | AK29: 11.48141 | AL29: 123643 | AM29: 0.09 | AN29: 0 | AO29: 0 | AP29: 0 | AQ29: 0
A30: 28 | B30: 472 | C30: BALLARD | D30: 0 | E30: 0.1 | F30: 0 | G30: 2015 | H30: 0 | I30: 0 | J30: 0 | K30: 0 | L30: 1.34 | M30: 2017 | N30: 0 | O30: 4.05 | P30: 3656323 | Q30: 16.93578 | R30: 476917 | S30: 2.20904 | T30: 0 | U30: 0 | V30: 314999 | W30: 1.45905 | X30: 215893388 | Y30: 71990161 | Z30: 0 | AA30: 0 | AB30: 245760 | AC30: 0.85368 | AD30: 95002 | AE30: 0.33 | AF30: 0 | AG30: 0 | AH30: 1165928 | AI30: 4.05 | AJ30: 5478012 | AK30: 23.62851 | AL30: 0 | AM30: 0 | AN30: 0 | AO30: 0 | AP30: 140004 | AQ30: 0.02
A31: 29 | B31: 504 | C31: BATTLE CREEK-IDA GROVE | D31: 0 | E31: 0.1 | F31: 0.2 | G31: 2012 | H31: 0 | I31: 0 | J31: 0 | K31: 0 | L31: 0.75 | M31: 2018 | N31: 0 | O31: 2.7 | P31: 2471591 | Q31: 12.40241 | R31: 119107 | S31: 0.59768 | T31: 0 | U31: 0 | V31: 125000 | W31: 0.62725 | X31: 199283134 | Y31: 4229760 | Z31: 0 | AA31: 0 | AB31: 80215 | AC31: 0.39415 | AD31: 67159 | AE31: 0.33 | AF31: 0 | AG31: 0 | AH31: 0 | AI31: 0 | AJ31: 2743965 | AK31: 13.75381 | AL31: 181053 | AM31: 0.05 | AN31: 0 | AO31: 0 | AP31: 72421 | AQ31: 0.02
A32: 30 | B32: 513 | C32: BAXTER | D32: 0 | E32: 0.1 | F32: 0.2 | G32: 2011 | H32: 0 | I32: 0 | J32: 0 | K32: 0 | L32: 0.67 | M32: 2012 | N32: 0 | O32: 4.05 | P32: 1087921 | Q32: 14.69072 | R32: 18253 | S32: 0.24648 | T32: 0 | U32: 0 | V32: 125000 | W32: 1.68794 | X32: 74054964 | Y32: 7339566 | Z32: 0 | AA32: 0 | AB32: 28241 | AC32: 0.34696 | AD32: 0 | AE32: 0 | AF32: 0 | AG32: 0 | AH32: 282140 | AI32: 3.46633 | AJ32: 1523302 | AK32: 20.19195 | AL32: 131463 | AM32: 0.1 | AN32: 0 | AO32: 0 | AP32: 26293 | AQ32: 0.02
A33: 31 | B33: 540 | C33: BCLUW | D33: 0 | E33: 0.1 | F33: 0.13 | G33: 2012 | H33: 0 | I33: 0 | J33: 0 | K33: 0 | L33: 0 | M33: 0 | N33: 0.135 | O33: 2.7 | P33: 2164796 | Q33: 10.50369 | R33: 17855 | S33: 0.08663 | T33: 0 | U33: 0 | V33: 160001 | W33: 0.77633 | X33: 206098603 | Y33: 4449387 | Z33: 0 | AA33: 0 | AB33: 0 | AC33: 0 | AD33: 69481 | AE33: 0.33 | AF33: 27823 | AG33: 0.135 | AH33: 385012 | AI33: 1.82862 | AJ33: 2807113 | AK33: 13.57364 | AL33: 279490 | AM33: 0.1 | AN33: 0 | AO33: 0 | AP33: 0 | AQ33: 0
A34: 32 | B34: 549 | C34: BEDFORD | D34: 0 | E34: 0.1 | F34: 0.2 | G34: 2014 | H34: 0 | I34: 0 | J34: 0 | K34: 0 | L34: 0.3 | M34: 2012 | N34: 0 | O34: 2.7 | P34: 1598218 | Q34: 12.61691 | R34: 72754 | S34: 0.57435 | T34: 0 | U34: 0 | V34: 0 | W34: 0 | X34: 126672672 | Y34: 278167 | Z34: 0 | AA34: 0 | AB34: 20947 | AC34: 0.165 | AD34: 41894 | AE34: 0.33 | AF34: 0 | AG34: 0 | AH34: 56709 | AI34: 0.4467 | AJ34: 1717768 | AK34: 13.55861 | AL34: 166631 | AM34: 0.1 | AN34: 0 | AO34: 0 | AP34: 0 | AQ34: 0
A35: 33 | B35: 7914 | C35: BEDFORD FROM NEW MARKET | D35: 0 | E35: 0 | F35: 0 | G35: 0 | H35: 0 | I35: 0 | J35: 0 | K35: 0 | L35: 0 | M35: 0 | N35: 0 | O35: 0 | P35: 290455 | Q35: 12.36691 | R35: 0 | S35: 0 | T35: 0 | U35: 0 | V35: 0 | W35: 0 | X35: 23486443 | Y35: 0 | Z35: 0 | AA35: 0 | AB35: 3875 | AC35: 0.165 | AD35: 7751 | AE35: 0.33 | AF35: 0 | AG35: 0 | AH35: 10491 | AI35: 0.4467 | AJ35: 312572 | AK35: 13.30861 | AL35: 0 | AM35: 0 | AN35: 0 | AO35: 0 | AP35: 0 | AQ35: 0
A36: 34 | B36: 576 | C36: BELLE PLAINE | D36: 0 | E36: 0.1 | F36: 0.2 | G36: 2014 | H36: 0 | I36: 0 | J36: 0 | K36: 0 | L36: 0.6 | M36: 2011 | N36: 0 | O36: 2.7 | P36: 1849217 | Q36: 14.4767 | R36: 38131 | S36: 0.29851 | T36: 0 | U36: 0 | V36: 176500 | W36: 1.38174 | X36: 127737480 | Y36: 287500 | Z36: 0 | AA36: 0 | AB36: 53532 | AC36: 0.41814 | AD36: 42248 | AE36: 0.33 | AF36: 0 | AG36: 0 | AH36: 322215 | AI36: 2.51681 | AJ36: 2443712 | AK36: 19.12339 | AL36: 209539 | AM36: 0.09 | AN36: 0 | AO36: 0 | AP36: 23282 | AQ36: 0.01
A37: 35 | B37: 585 | C37: BELLEVUE | D37: 0 | E37: 0.1 | F37: 0 | G37: 2012 | H37: 0 | I37: 0 | J37: 0 | K37: 0 | L37: 1.34 | M37: 2022 | N37: 0 | O37: 2.7 | P37: 2256106 | Q37: 12.8661 | R37: 282315 | S37: 1.60998 | T37: 0 | U37: 0 | V37: 50000 | W37: 0.28514 | X37: 175352733 | Y37: 8760229 | Z37: 0 | AA37: 0 | AB37: 104145 | AC37: 0.56566 | AD37: 60757 | AE37: 0.33 | AF37: 0 | AG37: 0 | AH37: 0 | AI37: 0 | AJ37: 2471008 | AK37: 14.0469 | AL37: 0 | AM37: 0 | AN37: 0 | AO37: 0 | AP37: 142565 | AQ37: 0.04
A38: 36 | B38: 594 | C38: BELMOND-KLEMME | D38: 0 | E38: 0.1 | F38: 0.03 | G38: 2012 | H38: 0 | I38: 0 | J38: 0 | K38: 0 | L38: 0.67 | M38: 2015 | N38: 0 | O38: 2.7 | P38: 3064646 | Q38: 12.7197 | R38: 244209 | S38: 1.01358 | T38: 0 | U38: 0 | V38: 400001 | W38: 1.66019 | X38: 240936953 | Y38: 1377214 | Z38: 0 | AA38: 0 | AB38: 162350 | AC38: 0.67 | AD38: 79964 | AE38: 0.33 | AF38: 0 | AG38: 0 | AH38: 266364 | AI38: 1.09925 | AJ38: 3973325 | AK38: 16.47914 | AL38: 102898 | AM38: 0.03 | AN38: 0 | AO38: 0 | AP38: 0 | AQ38: 0
A39: 37 | B39: 603 | C39: BENNETT | D39: 0 | E39: 0.1 | F39: 0.1 | G39: 2013 | H39: 0 | I39: 0 | J39: 0 | K39: 0 | L39: 0.67 | M39: 2019 | N39: 0 | O39: 2.7 | P39: 699307 | Q39: 8.7231 | R39: 2186 | S39: 0.02727 | T39: 0 | U39: 0 | V39: 75000 | W39: 0.93554 | X39: 80167214 | Y39: 766271 | Z39: 0 | AA39: 0 | AB39: 54225 | AC39: 0.66999 | AD39: 26708 | AE39: 0.33 | AF39: 0 | AG39: 0 | AH39: 46915 | AI39: 0.57967 | AJ39: 902155 | AK39: 11.2383 | AL39: 101562 | AM39: 0.09 | AN39: 0 | AO39: 0 | AP39: 0 | AQ39: 0
A40: 38 | B40: 609 | C40: BENTON | D40: 0 | E40: 0.1 | F40: 0.2 | G40: 2012 | H40: 0 | I40: 0 | J40: 0 | K40: 0 | L40: 1.34 | M40: 2011 | N40: 0 | O40: 2.7 | P40: 5450426 | Q40: 11.53382 | R40: 341659 | S40: 0.723 | T40: 0 | U40: 0 | V40: 310000 | W40: 0.656 | X40: 472560368 | Y40: 24676688 | Z40: 0 | AA40: 0 | AB40: 100551 | AC40: 0.20222 | AD40: 164088 | AE40: 0.33 | AF40: 0 | AG40: 0 | AH40: 0 | AI40: 0 | AJ40: 6025065 | AK40: 12.72204 | AL40: 363169 | AM40: 0.04 | AN40: 0 | AO40: 0 | AP40: 272377 | AQ40: 0.03
A41: 39 | B41: 621 | C41: BETTENDORF | D41: 0 | E41: 0.1 | F41: 0 | G41: 2013 | H41: 0 | I41: 0 | J41: 0 | K41: 0 | L41: 1.34 | M41: 2014 | N41: 0 | O41: 2.7 | P41: 15240732 | Q41: 12.9282 | R41: 1878816 | S41: 1.59374 | T41: 0 | U41: 0 | V41: 483339 | W41: 0.41 | X41: 1178874986 | Y41: 105897526 | Z41: 0 | AA41: 0 | AB41: 1721595 | AC41: 1.34 | AD41: 423975 | AE41: 0.33 | AF41: 0 | AG41: 0 | AH41: 0 | AI41: 0 | AJ41: 17869641 | AK41: 15.0082 | AL41: 0 | AM41: 0 | AN41: 0 | AO41: 0 | AP41: 0 | AQ41: 0
A42: 40 | B42: 720 | C42: BONDURANT-FARRAR | D42: 0 | E42: 0.1 | F42: 0.1 | G42: 2013 | H42: 0 | I42: 0 | J42: 0 | K42: 0 | L42: 1.34 | M42: 2018 | N42: 0 | O42: 4.05 | P42: 3259052 | Q42: 14.77729 | R42: 287245 | S42: 1.30243 | T42: 0 | U42: 0 | V42: 99999 | W42: 0.45342 | X42: 220544637 | Y42: 23870440 | Z42: 0 | AA42: 0 | AB42: 327516 | AC42: 1.34 | AD42: 80657 | AE42: 0.33 | AF42: 0 | AG42: 0 | AH42: 755707 | AI42: 3.0919 | AJ42: 4522931 | AK42: 19.99261 | AL42: 174256 | AM42: 0.03 | AN42: 0 | AO42: 0 | AP42: 0 | AQ42: 0
A43: 41 | B43: 729 | C43: BOONE | D43: 0 | E43: 0.1 | F43: 0.2 | G43: 2015 | H43: 0 | I43: 0 | J43: 0 | K43: 0 | L43: 1.34 | M43: 2019 | N43: 0 | O43: 4.05 | P43: 6816923 | Q43: 15.88953 | R43: 30472 | S43: 0.07103 | T43: 0 | U43: 0 | V43: 500001 | W43: 1.16545 | X43: 429019784 | Y43: 22258562 | Z43: 0 | AA43: 0 | AB43: 604713 | AC43: 1.34 | AD43: 148922 | AE43: 0.33 | AF43: 0 | AG43: 0 | AH43: 67692 | AI43: 0.15 | AJ43: 8138251 | AK43: 18.87498 | AL43: 827635 | AM43: 0.07 | AN43: 0 | AO43: 0 | AP43: 0 | AQ43: 0
A44: 42 | B44: 747 | C44: BOYDEN-HULL | D44: 0 | E44: 0.1 | F44: 0.2 | G44: 2014 | H44: 0 | I44: 0 | J44: 0 | K44: 0 | L44: 0.67 | M44: 2016 | N44: 0 | O44: 2.7 | P44: 1958759 | Q44: 12.97581 | R44: 40167 | S44: 0.26609 | T44: 0 | U44: 0 | V44: 150001 | W44: 0.99368 | X44: 150954627 | Y44: 28733982 | Z44: 0 | AA44: 0 | AB44: 55802 | AC44: 0.31055 | AD44: 59297 | AE44: 0.33 | AF44: 0 | AG44: 0 | AH44: 40399 | AI44: 0.22483 | AJ44: 2264258 | AK44: 14.83487 | AL44: 226062 | AM44: 0.07 | AN44: 0 | AO44: 0 | AP44: 64589 | AQ44: 0.02
A45: 43 | B45: 1917 | C45: BOYER VALLEY | D45: 0 | E45: 0.1 | F45: 0.2 | G45: 2013 | H45: 0 | I45: 0 | J45: 0 | K45: 0 | L45: 0.63 | M45: 2013 | N45: 0 | O45: 4.05 | P45: 1560374 | Q45: 11.4916 | R45: 13890 | S45: 0.10229 | T45: 0 | U45: 0 | V45: 90000 | W45: 0.66282 | X45: 135783905 | Y45: 1431621 | Z45: 0 | AA45: 0 | AB45: 86446 | AC45: 0.63 | AD45: 45281 | AE45: 0.33 | AF45: 0 | AG45: 0 | AH45: 238118 | AI45: 1.73536 | AJ45: 2020219 | AK45: 14.84978 | AL45: 192486 | AM45: 0.11 | AN45: 0 | AO45: 0 | AP45: 0 | AQ45: 0
A46: 44 | B46: 846 | C46: BROOKLYN-GUERNSEY-MALCOM | D46: 0 | E46: 0.1 | F46: 0.2 | G46: 2012 | H46: 0 | I46: 0 | J46: 0 | K46: 0 | L46: 1.34 | M46: 2020 | N46: 0 | O46: 3.9 | P46: 1707203 | Q46: 9.57883 | R46: 147316 | S46: 0.82657 | T46: 0 | U46: 0 | V46: 219999 | W46: 1.23438 | X46: 178226626 | Y46: 12940889 | Z46: 0 | AA46: 0 | AB46: 147392 | AC46: 0.77101 | AD46: 63085 | AE46: 0.33 | AF46: 0 | AG46: 0 | AH46: 341020 | AI46: 1.78388 | AJ46: 2478699 | AK46: 13.6981 | AL46: 108772 | AM46: 0.04 | AN46: 0 | AO46: 0 | AP46: 108772 | AQ46: 0.04
A47: 45 | B47: 882 | C47: BURLINGTON | D47: 0 | E47: 0.1 | F47: 0 | G47: 2015 | H47: 0 | I47: 0 | J47: 0 | K47: 0 | L47: 0.67 | M47: 2020 | N47: 0 | O47: 0 | P47: 12155788 | Q47: 15.04053 | R47: 1681533 | S47: 2.08058 | T47: 0 | U47: 0 | V47: 1450003 | W47: 1.79411 | X47: 808202105 | Y47: 48912689 | Z47: 0 | AA47: 0 | AB47: 574267 | AC47: 0.67 | AD47: 282848 | AE47: 0.33 | AF47: 0 | AG47: 0 | AH47: 0 | AI47: 0 | AJ47: 14462906 | AK47: 17.83464 | AL47: 0 | AM47: 0 | AN47: 0 | AO47: 0 | AP47: 0 | AQ47: 0
A48: 46 | B48: 914 | C48: C AND M | D48: 0 | E48: 0.1 | F48: 0.2 | G48: 2011 | H48: 0 | I48: 0 | J48: 0 | K48: 0 | L48: 1.34 | M48: 2020 | N48: 0 | O48: 2.7 | P48: 1000965 | Q48: 12.33785 | R48: 12534 | S48: 0.15449 | T48: 0 | U48: 0 | V48: 40000 | W48: 0.49304 | X48: 81129646 | Y48: 0 | Z48: 0 | AA48: 0 | AB48: 108714 | AC48: 1.34 | AD48: 26773 | AE48: 0.33 | AF48: 0 | AG48: 0 | AH48: 0 | AI48: 0 | AJ48: 1176452 | AK48: 14.50089 | AL48: 88001 | AM48: 0.1 | AN48: 0 | AO48: 0 | AP48: 0 | AQ48: 0
A49: 47 | B49: 916 | C49: CAL | D49: 0 | E49: 0.1 | F49: 0.2 | G49: 2011 | H49: 0 | I49: 0 | J49: 0 | K49: 0 | L49: 1.05 | M49: 2013 | N49: 0 | O49: 0 | P49: 1116066 | Q49: 9.84599 | R49: 53434 | S49: 0.4714 | T49: 0 | U49: 0 | V49: 135000 | W49: 1.19098 | X49: 113352324 | Y49: 214088 | Z49: 0 | AA49: 0 | AB49: 74811 | AC49: 0.65874 | AD49: 37477 | AE49: 0.33 | AF49: 0 | AG49: 0 | AH49: 0 | AI49: 0 | AJ49: 1363354 | AK49: 12.02571 | AL49: 88868 | AM49: 0.08 | AN49: 0 | AO49: 0 | AP49: 44434 | AQ49: 0.04
A50: 48 | B50: 918 | C50: CALAMUS/WHEATLAND | D50: 0 | E50: 0.1 | F50: 0.2 | G50: 2015 | H50: 0 | I50: 0 | J50: 0 | K50: 0 | L50: 0.67 | M50: 2021 | N50: 0 | O50: 2.7 | P50: 1589103 | Q50: 11.79616 | R50: 96859 | S50: 0.719 | T50: 0 | U50: 0 | V50: 120000 | W50: 0.89078 | X50: 134713625 | Y50: 0 | Z50: 0 | AA50: 0 | AB50: 90258 | AC50: 0.67 | AD50: 0 | AE50: 0 | AF50: 0 | AG50: 0 | AH50: 172788 | AI50: 1.28263 | AJ50: 1972149 | AK50: 14.63957 | AL50: 126711 | AM50: 0.07 | AN50: 0 | AO50: 0 | AP50: 0 | AQ50: 0
A51: 49 | B51: 936 | C51: CAMANCHE | D51: 0 | E51: 0.1 | F51: 0 | G51: 2011 | H51: 0 | I51: 0 | J51: 0 | K51: 0 | L51: 0 | M51: 0 | N51: 0 | O51: 2.7 | P51: 3429497 | Q51: 13.32399 | R51: 423274 | S51: 1.64447 | T51: 0 | U51: 0 | V51: 250000 | W51: 0.97128 | X51: 257392636 | Y51: 369250 | Z51: 0 | AA51: 0 | AB51: 0 | AC51: 0 | AD51: 85061 | AE51: 0.33 | AF51: 0 | AG51: 0 | AH51: 314199 | AI51: 1.21895 | AJ51: 4078757 | AK51: 15.84422 | AL51: 0 | AM51: 0 | AN51: 0 | AO51: 0 | AP51: 0 | AQ51: 0
A52: 50 | B52: 977 | C52: CARDINAL | D52: 0 | E52: 0.1 | F52: 0.2 | G52: 2015 | H52: 0 | I52: 0 | J52: 0 | K52: 0 | L52: 1.34 | M52: 2011 | N52: 0 | O52: 2.7 | P52: 1686487 | Q52: 14.47868 | R52: 562 | S52: 0.00482 | T52: 0 | U52: 0 | V52: 150000 | W52: 1.28777 | X52: 116480728 | Y52: 0 | Z52: 0 | AA52: 0 | AB52: 156084 | AC52: 1.34 | AD52: 38439 | AE52: 0.33 | AF52: 0 | AG52: 0 | AH52: 0 | AI52: 0 | AJ52: 2031010 | AK52: 17.43645 | AL52: 238087 | AM52: 0.12 | AN52: 0 | AO52: 0 | AP52: 0 | AQ52: 0
A53: 51 | B53: 981 | C53: CARLISLE | D53: 0 | E53: 0 | F53: 0 | G53: 0 | H53: 0 | I53: 0 | J53: 0 | K53: 0 | L53: 1.34 | M53: 2018 | N53: 0 | O53: 4.05 | P53: 3826737 | Q53: 15.61587 | R53: 0 | S53: 0 | T53: 0 | U53: 0 | V53: 349999 | W53: 1.42825 | X53: 245054348 | Y53: 0 | Z53: 0 | AA53: 0 | AB53: 183791 | AC53: 0.75 | AD53: 80868 | AE53: 0.33 | AF53: 0 | AG53: 0 | AH53: 698603 | AI53: 2.85081 | AJ53: 5139998 | AK53: 20.97493 | AL53: 0 | AM53: 0 | AN53: 0 | AO53: 0 | AP53: 0 | AQ53: 0
A54: 52 | B54: 999 | C54: CARROLL | D54: 0 | E54: 0 | F54: 0 | G54: 0 | H54: 0 | I54: 0 | J54: 0 | K54: 0 | L54: 0 | M54: 0 | N54: 0 | O54: 2.7 | P54: 6650213 | Q54: 10.75887 | R54: 0 | S54: 0 | T54: 0 | U54: 0 | V54: 199997 | W54: 0.32356 | X54: 618114465 | Y54: 31889085 | Z54: 0 | AA54: 0 | AB54: 0 | AC54: 0 | AD54: 214501 | AE54: 0.33 | AF54: 0 | AG54: 0 | AH54: 131873 | AI54: 0.20288 | AJ54: 7196584 | AK54: 11.61531 | AL54: 0 | AM54: 0 | AN54: 0 | AO54: 0 | AP54: 0 | AQ54: 0
A55: 53 | B55: 1044 | C55: CEDAR FALLS | D55: 0 | E55: 0.1 | F55: 0 | G55: 2012 | H55: 0 | I55: 0 | J55: 0 | K55: 0 | L55: 1.34 | M55: 2018 | N55: 0 | O55: 0 | P55: 15651695 | Q55: 11.92228 | R55: 2034416 | S55: 1.54966 | T55: 0 | U55: 0 | V55: 735003 | W55: 0.55987 | X55: 1312810513 | Y55: 235930459 | Z55: 0 | AA55: 0 | AB55: 2075313 | AC55: 1.34 | AD55: 511085 | AE55: 0.33 | AF55: 0 | AG55: 0 | AH55: 0 | AI55: 0 | AJ55: 18973096 | AK55: 14.15215 | AL55: 0 | AM55: 0 | AN55: 0 | AO55: 0 | AP55: 0 | AQ55: 0
A56: 54 | B56: 1053 | C56: CEDAR RAPIDS | D56: 0 | E56: 0.1 | F56: 0.06 | G56: 2011 | H56: 0 | I56: 0 | J56: 0 | K56: 0 | L56: 0.67 | M56: 2015 | N56: 0 | O56: 2.7 | P56: 59620555 | Q56: 13.50838 | R56: 1532334 | S56: 0.34718 | T56: 0 | U56: 0 | V56: 3222853 | W56: 0.73021 | X56: 4413597697 | Y56: 163277956 | Z56: 0 | AA56: 0 | AB56: 3066507 | AC56: 0.67 | AD56: 1198546 | AE56: 0.26187 | AF56: 0 | AG56: 0 | AH56: 0 | AI56: 0 | AJ56: 67108461 | AK56: 15.17046 | AL56: 6078039 | AM56: 0.05 | AN56: 0 | AO56: 0 | AP56: 0 | AQ56: 0
A57: 55 | B57: 1062 | C57: CENTER POINT-URBANA | D57: 0 | E57: 0.1 | F57: 0.2 | G57: 2015 | H57: 0 | I57: 0 | J57: 0 | K57: 0 | L57: 0.67 | M57: 2013 | N57: 0 | O57: 4.05 | P57: 2874228 | Q57: 13.65841 | R57: 51627 | S57: 0.24533 | T57: 0 | U57: 0 | V57: 164999 | W57: 0.78408 | X57: 210436468 | Y57: 10025742 | Z57: 0 | AA57: 0 | AB57: 147710 | AC57: 0.67 | AD57: 72753 | AE57: 0.33 | AF57: 0 | AG57: 0 | AH57: 688329 | AI57: 3.12221 | AJ57: 3948019 | AK57: 18.5647 | AL57: 401737 | AM57: 0.07 | AN57: 0 | AO57: 0 | AP57: 0 | AQ57: 0
A58: 56 | B58: 1071 | C58: CENTERVILLE | D58: 0 | E58: 0.02 | F58: 0.03 | G58: 2012 | H58: 0 | I58: 0 | J58: 0 | K58: 0 | L58: 1 | M58: 2011 | N58: 0 | O58: 2.7 | P58: 3175499 | Q58: 14.57401 | R58: 2334 | S58: 0.01071 | T58: 0 | U58: 0 | V58: 320001 | W58: 1.46865 | X58: 217887778 | Y58: 4779799 | Z58: 0 | AA58: 0 | AB58: 126005 | AC58: 0.56589 | AD58: 73480 | AE58: 0.33 | AF58: 0 | AG58: 0 | AH58: 145453 | AI58: 0.65323 | AJ58: 3840438 | AK58: 17.59178 | AL58: 96663 | AM58: 0.02 | AN58: 0 | AO58: 0 | AP58: 96663 | AQ58: 0.02
A59: 57 | B59: 1089 | C59: CENTRAL CITY | D59: 0 | E59: 0.05 | F59: 0 | G59: 2012 | H59: 0 | I59: 0 | J59: 0 | K59: 0 | L59: 0.67 | M59: 2015 | N59: 0 | O59: 2.7 | P59: 1289507 | Q59: 14.25121 | R59: 92651 | S59: 1.02395 | T59: 0 | U59: 0 | V59: 90000 | W59: 0.99465 | X59: 90484045 | Y59: 13539971 | Z59: 0 | AA59: 0 | AB59: 69696 | AC59: 0.67 | AD59: 34328 | AE59: 0.33 | AF59: 0 | AG59: 0 | AH59: 231194 | AI59: 2.22251 | AJ59: 1714725 | AK59: 18.46837 | AL59: 0 | AM59: 0 | AN59: 0 | AO59: 0 | AP59: 0 | AQ59: 0
A60: 58 | B60: 1080 | C60: CENTRAL CLAYTON | D60: 0 | E60: 0.1 | F60: 0.2 | G60: 2011 | H60: 0 | I60: 0 | J60: 0 | K60: 0 | L60: 0.67 | M60: 2016 | N60: 0 | O60: 2.7 | P60: 1838662 | Q60: 12.92875 | R60: 28986 | S60: 0.20382 | T60: 0 | U60: 0 | V60: 70000 | W60: 0.49221 | X60: 142215011 | Y60: 3979335 | Z60: 0 | AA60: 0 | AB60: 46525 | AC60: 0.31824 | AD60: 48244 | AE60: 0.33 | AF60: 0 | AG60: 0 | AH60: 0 | AI60: 0 | AJ60: 2003431 | AK60: 14.0692 | AL60: 205700 | AM60: 0.08 | AN60: 0 | AO60: 0 | AP60: 51425 | AQ60: 0.02
A61: 59 | B61: 1082 | C61: CENTRAL CLINTON | D61: 0 | E61: 0.1 | F61: 0.1 | G61: 2011 | H61: 0 | I61: 0 | J61: 0 | K61: 0 | L61: 0.67 | M61: 2014 | N61: 0 | O61: 2.7 | P61: 4210965 | Q61: 11.30038 | R61: 49405 | S61: 0.13258 | T61: 0 | U61: 0 | V61: 149998 | W61: 0.40253 | X61: 372639234 | Y61: 41735472 | Z61: 0 | AA61: 0 | AB61: 277631 | AC61: 0.67 | AD61: 136744 | AE61: 0.33 | AF61: 0 | AG61: 0 | AH61: 938265 | AI61: 2.26429 | AJ61: 5713603 | AK61: 14.9672 | AL61: 608280 | AM61: 0.08 | AN61: 0 | AO61: 0 | AP61: 0 | AQ61: 0
A62: 60 | B62: 1093 | C62: CENTRAL DECATUR | D62: 0 | E62: 0.075 | F62: 0.12 | G62: 2012 | H62: 0 | I62: 0 | J62: 0 | K62: 0 | L62: 0 | M62: 0 | N62: 0 | O62: 4.05 | P62: 1726910 | Q62: 13.63936 | R62: 5650 | S62: 0.04462 | T62: 0 | U62: 0 | V62: 189999 | W62: 1.50064 | X62: 126612242 | Y62: 0 | Z62: 0 | AA62: 0 | AB62: 0 | AC62: 0 | AD62: 41782 | AE62: 0.33 | AF62: 0 | AG62: 0 | AH62: 268315 | AI62: 2.11919 | AJ62: 2227006 | AK62: 17.58919 | AL62: 187083 | AM62: 0.1 | AN62: 0 | AO62: 0 | AP62: 0 | AQ62: 0
A63: 61 | B63: 1079 | C63: CENTRAL LEE | D63: 0 | E63: 0.1 | F63: 0.2 | G63: 2013 | H63: 0 | I63: 0 | J63: 0 | K63: 0 | L63: 0 | M63: 0 | N63: 0 | O63: 2.7 | P63: 2384149 | Q63: 12.67051 | R63: 26708 | S63: 0.14194 | T63: 0 | U63: 0 | V63: 245000 | W63: 1.30205 | X63: 188165170 | Y63: 16728091 | Z63: 0 | AA63: 0 | AB63: 0 | AC63: 0 | AD63: 0 | AE63: 0 | AF63: 0 | AG63: 0 | AH63: 0 | AI63: 0 | AJ63: 2629149 | AK63: 13.97256 | AL63: 331698 | AM63: 0.1 | AN63: 0 | AO63: 0 | AP63: 0 | AQ63: 0
A64: 62 | B64: 1095 | C64: CENTRAL LYON | D64: 0 | E64: 0.1 | F64: 0.2 | G64: 2011 | H64: 0 | I64: 0 | J64: 0 | K64: 0 | L64: 0.67 | M64: 2013 | N64: 0.135 | O64: 4.05 | P64: 1969101 | Q64: 10.00421 | R64: 26175 | S64: 0.13298 | T64: 0 | U64: 0 | V64: 124999 | W64: 0.63507 | X64: 196827242 | Y64: 6013953 | Z64: 0 | AA64: 0 | AB64: 135904 | AC64: 0.67 | AD64: 66938 | AE64: 0.33 | AF64: 26572 | AG64: 0.135 | AH64: 409644 | AI64: 2.01953 | AJ64: 2733158 | AK64: 13.79381 | AL64: 290781 | AM64: 0.09 | AN64: 0 | AO64: 0 | AP64: 0 | AQ64: 0
A65: 63 | B65: 1107 | C65: CHARITON | D65: 0 | E65: 0.1 | F65: 0.2 | G65: 2015 | H65: 0 | I65: 0 | J65: 0 | K65: 0 | L65: 1.34 | M65: 2014 | N65: 0 | O65: 2.7 | P65: 3081440 | Q65: 14.34015 | R65: 44091 | S65: 0.20519 | T65: 0 | U65: 0 | V65: 174256 | W65: 0.81094 | X65: 214882013 | Y65: 0 | Z65: 0 | AA65: 0 | AB65: 74149 | AC65: 0.34507 | AD65: 70911 | AE65: 0.33 | AF65: 0 | AG65: 0 | AH65: 0 | AI65: 0 | AJ65: 3400756 | AK65: 15.82616 | AL65: 490757 | AM65: 0.1 | AN65: 0 | AO65: 0 | AP65: 245379 | AQ65: 0.05
A66: 64 | B66: 7919 | C66: CHARITON FROM RUSSELL | D66: 0 | E66: 0 | F66: 0 | G66: 0 | H66: 0 | I66: 0 | J66: 0 | K66: 0 | L66: 0 | M66: 0 | N66: 0 | O66: 0 | P66: 455253 | Q66: 14.34015 | R66: 0 | S66: 0 | T66: 0 | U66: 0 | V66: 25745 | W66: 0.81094 | X66: 31746733 | Y66: 0 | Z66: 0 | AA66: 0 | AB66: 10955 | AC66: 0.34507 | AD66: 10476 | AE66: 0.33 | AF66: 0 | AG66: 0 | AH66: 0 | AI66: 0 | AJ66: 502429 | AK66: 15.82616 | AL66: 0 | AM66: 0 | AN66: 0 | AO66: 0 | AP66: 0 | AQ66: 0
A67: 65 | B67: 1116 | C67: CHARLES CITY | D67: 0 | E67: 0.07 | F67: 0.2 | G67: 2012 | H67: 0 | I67: 0 | J67: 0 | K67: 0 | L67: 1.34 | M67: 2020 | N67: 0 | O67: 0 | P67: 4933087 | Q67: 12.02363 | R67: 57985 | S67: 0.14133 | T67: 0 | U67: 0 | V67: 374998 | W67: 0.914 | X67: 410282674 | Y67: 44793145 | Z67: 0 | AA67: 0 | AB67: 392644 | AC67: 0.86281 | AD67: 0 | AE67: 0 | AF67: 0 | AG67: 0 | AH67: 0 | AI67: 0 | AJ67: 5700729 | AK67: 13.80044 | AL67: 434319 | AM67: 0.06 | AN67: 0 | AO67: 0 | AP67: 217159 | AQ67: 0.03
A68: 66 | B68: 1134 | C68: CHARTER OAK-UTE | D68: 0 | E68: 0.1 | F68: 0.1 | G68: 2012 | H68: 0 | I68: 0 | J68: 0 | K68: 0 | L68: 0.67 | M68: 2014 | N68: 0 | O68: 0 | P68: =ROUND(($X68/1000)*Q68,0) -> 1119342 | Q68: 9.89296 | R68: 26482 | S68: =ROUND(R68/(X68/1000),5) -> 0.23405 | T68: 0 | U68: 0 | V68: =ROUND(($X68/1000)*W68,0) -> 175000 | W68: 1.54668 | X68: 113145287 | Y68: 0 | Z68: =ROUND(($X68/1000)*AA68,0) -> 0 | AA68: 0 | AB68: =ROUND((($X68+$Y68)/1000)*AC68,0) -> 10955 | AC68: 0.09682 | AD68: =ROUND((($X68+$Y68)/1000)*AE68,0) -> 37338 | AE68: 0.33 | AF68: =ROUND(($X68/1000)*AG68,0) -> 0 | AG68: 0 | AH68: =ROUND((($X68+$Y68)/1000)*AI68,0) -> 0 | AI68: 0 | AJ68: =P68+V68+Z68+AB68+AD68+AF68+AH68 -> 1342635 | AK68: 11.86646 | AL68: 129703 | AM68: 0.1 | AN68: 0 | AO68: 0 | AP68: 64852 | AQ68: 0.05
A69: 67 | B69: 1152 | C69: CHEROKEE | D69: 0 | E69: 0.08 | F69: 0.05 | G69: 2015 | H69: 0 | I69: 0 | J69: 0 | K69: 0 | L69: 0.85 | M69: 2018 | N69: 0 | O69: 2.7 | P69: 2897130 | Q69: 13.11633 | R69: 94786 | S69: 0.42913 | T69: 0 | U69: =ROUND(T69/(X69/1000),5) -> 0 | V69: 200000 | W69: 0.90547 | X69: 220879647 | Y69: 5477309 | Z69: 0 | AA69: 0 | AB69: 192403 | AC69: 0.85 | AD69: 74698 | AE69: 0.33 | AF69: 0 | AG69: 0 | AH69: 0 | AI69: 0 | AJ69: 3364231 | AK69: 15.2018 | AL69: 239035 | AM69: 0.05 | AN69: 0 | AO69: 0 | AP69: 0 | AQ69: 0
A70: 68 | B70: 1197 | C70: CLARINDA | D70: 0 | E70: 0.06 | F70: 0.2 | G70: 2011 | H70: 0 | I70: 0 | J70: 0 | K70: 0 | L70: 0 | M70: 0 | N70: 0 | O70: 4.05 | P70: 2708732 | Q70: 13.07956 | R70: 14343 | S70: 0.06926 | T70: 0 | U70: 0 | V70: 135379 | W70: 0.6537 | X70: 207096539 | Y70: 1650000 | Z70: 0 | AA70: 0 | AB70: 0 | AC70: 0 | AD70: 68886 | AE70: 0.33 | AF70: 0 | AG70: 0 | AH70: 0 | AI70: 0 | AJ70: 2912997 | AK70: 14.06326 | AL70: 237575 | AM70: 0.05 | AN70: 0 | AO70: 0 | AP70: 0 | AQ70: 0
A71: 69 | B71: 7916 | C71: CLARINDA FROM NEW MARKET | D71: 0 | E71: 0 | F71: 0 | G71: 0 | H71: 0 | I71: 0 | J71: 0 | K71: 0 | L71: 0 | M71: 0 | N71: 0 | O71: 0 | P71: 286936 | Q71: 12.82956 | R71: 0 | S71: 0 | T71: 0 | U71: 0 | V71: 14620 | W71: 0.6537 | X71: 22365188 | Y71: 0 | Z71: 0 | AA71: 0 | AB71: 0 | AC71: 0 | AD71: 7381 | AE71: 0.33 | AF71: 0 | AG71: 0 | AH71: 0 | AI71: 0 | AJ71: 308937 | AK71: 13.81326 | AL71: 0 | AM71: 0 | AN71: 0 | AO71: 0 | AP71: 0 | AQ71: 0
A72: 70 | B72: 1206 | C72: CLARION-GOLDFIELD | D72: 0 | E72: 0.1 | F72: 0.08 | G72: 2018 | H72: 0 | I72: 0 | J72: 0 | K72: 0 | L72: 1.34 | M72: 2012 | N72: 0 | O72: 2.7 | P72: 3434086 | Q72: 11.92933 | R72: 137952 | S72: 0.47922 | T72: 0 | U72: 0 | V72: 400000 | W72: 1.38952 | X72: 287869107 | Y72: 20008173 | Z72: 0 | AA72: 0 | AB72: 412556 | AC72: 1.34 | AD72: 101600 | AE72: 0.33 | AF72: 0 | AG72: 0 | AH72: 169333 | AI72: 0.55 | AJ72: 4517575 | AK72: 15.53885 | AL72: 282243 | AM72: 0.08 | AN72: 0 | AO72: 0 | AP72: 0 | AQ72: 0
A73: 71 | B73: 1211 | C73: CLARKE | D73: 0 | E73: 0.1 | F73: 0.2 | G73: 2015 | H73: 0 | I73: 0 | J73: 0 | K73: 0 | L73: 1.34 | M73: 2019 | N73: 0 | O73: 2.7 | P73: 3573172 | Q73: 13.92393 | R73: 516869 | S73: 2.01413 | T73: 0 | U73: 0 | V73: 200000 | W73: 0.77936 | X73: 256620914 | Y73: 42252151 | Z73: 0 | AA73: 0 | AB73: 176192 | AC73: 0.58952 | AD73: 10000 | AE73: 0.03346 | AF73: 0 | AG73: 0 | AH73: 0 | AI73: 0 | AJ73: 3959364 | AK73: 15.32627 | AL73: 0 | AM73: 0 | AN73: 0 | AO73: 0 | AP73: 224297 | AQ73: 0.05
A74: 72 | B74: 1215 | C74: CLARKSVILLE | D74: 0 | E74: 0.1 | F74: 0.2 | G74: 2015 | H74: 0 | I74: 0 | J74: 0 | K74: 0 | L74: 1.34 | M74: 2012 | N74: 0 | O74: 2.7 | P74: 1053474 | Q74: 13.83669 | R74: 11644 | S74: 0.15294 | T74: 0 | U74: 0 | V74: 92500 | W74: 1.21493 | X74: 76136250 | Y74: 0 | Z74: 0 | AA74: 0 | AB74: 33069 | AC74: 0.43434 | AD74: 0 | AE74: 0 | AF74: 0 | AG74: 0 | AH74: 0 | AI74: 0 | AJ74: 1179043 | AK74: 15.48596 | AL74: 137909 | AM74: 0.1 | AN74: 0 | AO74: 0 | AP74: 68954 | AQ74: 0.05
A75: 73 | B75: 1218 | C75: CLAY CENTRAL-EVERLY | D75: 0 | E75: 0.1 | F75: 0.2 | G75: 2016 | H75: 0 | I75: 0 | J75: 0 | K75: 0 | L75: 0 | M75: 0 | N75: 0 | O75: 2.7 | P75: 2198203 | Q75: 11.698 | R75: 101060 | S75: 0.5378 | T75: 0 | U75: 0 | V75: 119584 | W75: 0.63638 | X75: 187912686 | Y75: 0 | Z75: 0 | AA75: 0 | AB75: 0 | AC75: 0 | AD75: 0 | AE75: 0 | AF75: 0 | AG75: 0 | AH75: 0 | AI75: 0 | AJ75: 2317787 | AK75: 12.33438 | AL75: 105037 | AM75: 0.05 | AN75: 0 | AO75: 0 | AP75: 0 | AQ75: 0
A76: 74 | B76: 7921 | C76: CLAY CENTRAL-EVERLY FROM S CLAY | D76: 0 | E76: 0 | F76: 0 | G76: 0 | H76: 0 | I76: 0 | J76: 0 | K76: 0 | L76: 0 | M76: 0 | N76: 0 | O76: 0 | P76: 6993 | Q76: 10.698 | R76: 0 | S76: 0 | T76: 0 | U76: 0 | V76: 416 | W76: 0.63638 | X76: 653627 | Y76: 0 | Z76: 0 | AA76: 0 | AB76: 0 | AC76: 0 | AD76: 0 | AE76: 0 | AF76: 0 | AG76: 0 | AH76: 0 | AI76: 0 | AJ76: 7409 | AK76: 11.33438 | AL76: 0 | AM76: 0 | AN76: 0 | AO76: 0 | AP76: 0 | AQ76: 0
A77: 75 | B77: 2763 | C77: CLAYTON RIDGE | D77: 0 | E77: 0.1 | F77: 0.1 | G77: 2014 | H77: 0 | I77: 0 | J77: 0 | K77: 0 | L77: 0.67 | M77: 2018 | N77: 0 | O77: 2.7 | P77: 2495015 | Q77: 10.12798 | R77: 183391 | S77: 0.74444 | T77: 0 | U77: 0 | V77: 250000 | W77: 1.01482 | X77: 246348720 | Y77: 10829530 | Z77: 0 | AA77: 0 | AB77: 172309 | AC77: 0.67 | AD77: 84869 | AE77: 0.33 | AF77: 0 | AG77: 0 | AH77: 0 | AI77: 0 | AJ77: 3002193 | AK77: 12.1428 | AL77: 143488 | AM77: 0.05 | AN77: 0 | AO77: 0 | AP77: 0 | AQ77: 0
A78: 76 | B78: 216 | C78: CLEAR CREEK-AMANA (AMANA) | D78: 0 | E78: 0 | F78: 0 | G78: 0 | H78: 0 | I78: 0 | J78: 0.2 | K78: 0 | L78: 0 | M78: 0 | N78: 0 | O78: 2.7 | P78: 1216546 | Q78: 11.04594 | R78: 0 | S78: 0 | T78: 0 | U78: 0 | V78: 115649 | W78: 1.05006 | X78: 110135154 | Y78: 0 | Z78: 22027 | AA78: 0.2 | AB78: 40762 | AC78: 0.37011 | AD78: 36345 | AE78: 0.33 | AF78: 0 | AG78: 0 | AH78: 320924 | AI78: 2.91391 | AJ78: 1752253 | AK78: 15.91002 | AL78: 0 | AM78: 0 | AN78: 0 | AO78: 0 | AP78: 0 | AQ78: 0
A79: 77 | B79: 1221 | C79: CLEAR CREEK-AMANA (CLEAR CREEK) | D79: 0 | E79: 0.1 | F79: 0.2 | G79: 2014 | H79: 0 | I79: 0 | J79: 0 | K79: 0 | L79: 0.67 | M79: 2015 | N79: 0 | O79: 4.05 | P79: 4043101 | Q79: 11.04594 | R79: 127749 | S79: 0.34902 | T79: 0 | U79: 0 | V79: 384349 | W79: 1.05006 | X79: 366025977 | Y79: 335909530 | Z79: 0 | AA79: 0 | AB79: 259793 | AC79: 0.37011 | AD79: 231639 | AE79: 0.33 | AF79: 0 | AG79: 0 | AH79: 2045377 | AI79: 2.91391 | AJ79: 6964259 | AK79: 15.71002 | AL79: 568236 | AM79: 0.07 | AN79: 0 | AO79: 0 | AP79: 243530 | AQ79: 0.03
A80: 78 | B80: 1233 | C80: CLEAR LAKE | D80: 0 | E80: 0.1 | F80: 0.2 | G80: 2018 | H80: 0 | I80: 0 | J80: 0 | K80: 0 | L80: 0.67 | M80: 2017 | N80: 0 | O80: 4.05 | P80: 5614132 | Q80: 11.31664 | R80: 243397 | S80: 0.49063 | T80: 0 | U80: 0 | V80: 310000 | W80: 0.62488 | X80: 496095310 | Y80: 71811542 | Z80: 0 | AA80: 0 | AB80: 380498 | AC80: 0.67 | AD80: 187409 | AE80: 0.33 | AF80: 0 | AG80: 0 | AH80: 0 | AI80: 0 | AJ80: 6492039 | AK80: 12.94152 | AL80: 424208 | AM80: 0.05 | AN80: 0 | AO80: 0 | AP80: 0 | AQ80: 0
A81: 79 | B81: 1224 | C81: CLEARFIELD | D81: 0 | E81: 0.1 | F81: 0.2 | G81: 2011 | H81: 0 | I81: 0 | J81: 0 | K81: 0 | L81: 0 | M81: 0 | N81: 0 | O81: 0 | P81: 423647 | Q81: 11.75481 | R81: 11336 | S81: 0.31454 | T81: 0 | U81: 0 | V81: 25000 | W81: 0.69367 | X81: 36040297 | Y81: 0 | Z81: 0 | AA81: 0 | AB81: 0 | AC81: 0 | AD81: 11741 | AE81: 0.32577 | AF81: 0 | AG81: 0 | AH81: 0 | AI81: 0 | AJ81: 460388 | AK81: 12.77425 | AL81: 34590 | AM81: 0.1 | AN81: 0 | AO81: 0 | AP81: 0 | AQ81: 0
A82: 80 | B82: 1278 | C82: CLINTON | D82: 0 | E82: 0.1 | F82: 0.2 | G82: 2013 | H82: 0 | I82: 0 | J82: 0 | K82: 0 | L82: 0 | M82: 0 | N82: 0 | O82: 2.07 | P82: 12150390 | Q82: 15.21897 | R82: 70458 | S82: 0.08825 | T82: 0 | U82: 0 | V82: 584887 | W82: 0.7326 | X82: 798371350 | Y82: 48435249 | Z82: 0 | AA82: 0 | AB82: 0 | AC82: 0 | AD82: 279446 | AE82: 0.33 | AF82: 0 | AG82: 0 | AH82: 721301 | AI82: 0.85179 | AJ82: 13736024 | AK82: 17.13336 | AL82: 1560627 | AM82: 0.09 | AN82: 0 | AO82: 0 | AP82: 0 | AQ82: 0
A83: 81 | B83: 1332 | C83: COLFAX-MINGO | D83: 0 | E83: 0.1 | F83: 0.2 | G83: 2011 | H83: 0 | I83: 0 | J83: 0 | K83: 0 | L83: 0 | M83: 0 | N83: 0.135 | O83: 4.05 | P83: 2123296 | Q83: 14.29665 | R83: 89222 | S83: 0.60075 | T83: 0 | U83: 0 | V83: 275000 | W83: 1.85164 | X83: 148517007 | Y83: 12798873 | Z83: 0 | AA83: 0 | AB83: 0 | AC83: 0 | AD83: 53234 | AE83: 0.33 | AF83: 0 | AG83: 0 | AH83: 530316 | AI83: 3.28744 | AJ83: 2981846 | AK83: 19.76573 | AL83: 231366 | AM83: 0.07 | AN83: 0 | AO83: 0 | AP83: 0 | AQ83: 0
A84: 82 | B84: 1337 | C84: COLLEGE | D84: 0 | E84: 0.1 | F84: 0 | G84: 2014 | H84: 0 | I84: 0 | J84: 0 | K84: 0 | L84: 0.67 | M84: 2014 | N84: 0 | O84: 4.05 | P84: 18954274 | Q84: 13.60011 | R84: 1991483 | S84: 1.42893 | T84: 0 | U84: 0 | V84: 1249996 | W84: 0.8969 | X84: 1393685359 | Y84: 145614923 | Z84: 0 | AA84: 0 | AB84: 1031331 | AC84: 0.67 | AD84: 507969 | AE84: 0.33 | AF84: 0 | AG84: 0 | AH84: 2626970 | AI84: 1.7066 | AJ84: 24370540 | AK84: 17.20361 | AL84: 0 | AM84: 0 | AN84: 0 | AO84: 0 | AP84: 0 | AQ84: 0
A85: 83 | B85: 1350 | C85: COLLINS-MAXWELL | D85: 0 | E85: 0.1 | F85: 0.1 | G85: 2011 | H85: 0 | I85: 0 | J85: 0 | K85: 0 | L85: 0.67 | M85: 2015 | N85: 0 | O85: 2.7 | P85: 1393382 | Q85: 11.37 | R85: 155407 | S85: 1.26812 | T85: 0 | U85: 0 | V85: 276899 | W85: 2.2595 | X85: 122548983 | Y85: 3356309 | Z85: 0 | AA85: 0 | AB85: 84357 | AC85: 0.67 | AD85: 41549 | AE85: 0.33 | AF85: 0 | AG85: 0 | AH85: 0 | AI85: 0 | AJ85: 1796187 | AK85: 14.6295 | AL85: 67190 | AM85: 0.03 | AN85: 0 | AO85: 0 | AP85: 0 | AQ85: 0
A86: 84 | B86: 1359 | C86: COLO-NESCO | D86: 0 | E86: 0.1 | F86: 0.2 | G86: 2012 | H86: 0 | I86: 0 | J86: 0 | K86: 0 | L86: 0 | M86: 0 | N86: 0 | O86: 2.7 | P86: 1591457 | Q86: 9.63044 | R86: 38979 | S86: 0.23587 | T86: 0 | U86: 0 | V86: 99999 | W86: 0.60513 | X86: 165252810 | Y86: 10796124 | Z86: 0 | AA86: 0 | AB86: 0 | AC86: 0 | AD86: 58096 | AE86: 0.33 | AF86: 0 | AG86: 0 | AH86: 0 | AI86: 0 | AJ86: 1749552 | AK86: 10.56557 | AL86: 194119 | AM86: 0.08 | AN86: 0 | AO86: 0 | AP86: 0 | AQ86: 0
A87: 85 | B87: 1368 | C87: COLUMBUS | D87: 0 | E87: 0.1 | F87: 0.2 | G87: 2013 | H87: 0 | I87: 0 | J87: 0 | K87: 0 | L87: 0.67 | M87: 2015 | N87: 0.135 | O87: 2.7 | P87: 3262611 | Q87: 14.34866 | R87: 9687 | S87: 0.0426 | T87: 0 | U87: 0 | V87: 70900 | W87: 0.31181 | X87: 227380859 | Y87: 1645976 | Z87: 0 | AA87: 0 | AB87: 153448 | AC87: 0.67 | AD87: 75579 | AE87: 0.33 | AF87: 30696 | AG87: 0.135 | AH87: 352818 | AI87: 1.54051 | AJ87: 3946052 | AK87: 17.33598 | AL87: 405816 | AM87: 0.15 | AN87: 0 | AO87: 0 | AP87: 0 | AQ87: 0
A88: 86 | B88: 1413 | C88: COON RAPIDS-BAYARD | D88: 0 | E88: 0.1 | F88: 0.07 | G88: 2012 | H88: 0 | I88: 0 | J88: 0 | K88: 0 | L88: 1.34 | M88: 2012 | N88: 0 | O88: 2.7 | P88: 1851241 | Q88: 12.69533 | R88: 104981 | S88: 0.71993 | T88: 0 | U88: 0 | V88: 95001 | W88: 0.65149 | X88: 145820621 | Y88: 23422572 | Z88: 0 | AA88: 0 | AB88: 226786 | AC88: 1.34 | AD88: 55850 | AE88: 0.33 | AF88: 0 | AG88: 0 | AH88: 0 | AI88: 0 | AJ88: 2228878 | AK88: 15.01682 | AL88: 117387 | AM88: 0.07 | AN88: 0 | AO88: 0 | AP88: 0 | AQ88: 0
A89: 87 | B89: 1431 | C89: CORNING | D89: 0 | E89: 0.1 | F89: 0.2 | G89: 2014 | H89: 0 | I89: 0 | J89: 0 | K89: 0 | L89: 0.67 | M89: 2020 | N89: 0 | O89: 2.7 | P89: 1834781 | Q89: 11.97099 | R89: 134872 | S89: 0.87997 | T89: 0 | U89: 0 | V89: 0 | W89: 0 | X89: 153268921 | Y89: 17685900 | Z89: 0 | AA89: 0 | AB89: 114540 | AC89: 0.67 | AD89: 56415 | AE89: 0.33 | AF89: 0 | AG89: 0 | AH89: 298157 | AI89: 1.74407 | AJ89: 2303893 | AK89: 14.71506 | AL89: 91324 | AM89: 0.05 | AN89: 0 | AO89: 0 | AP89: 0 | AQ89: 0
A90: 88 | B90: 7915 | C90: CORNING FROM NEW MARKET | D90: 0 | E90: 0 | F90: 0 | G90: 0 | H90: 0 | I90: 0 | J90: 0 | K90: 0 | L90: 0 | M90: 0 | N90: 0 | O90: 0 | P90: 1966 | Q90: 11.72099 | R90: 0 | S90: 0 | T90: 0 | U90: 0 | V90: 0 | W90: 0 | X90: 167766 | Y90: 0 | Z90: 0 | AA90: 0 | AB90: 112 | AC90: 0.67 | AD90: 55 | AE90: 0.33 | AF90: 0 | AG90: 0 | AH90: 293 | AI90: 1.74407 | AJ90: 2426 | AK90: 14.46506 | AL90: 0 | AM90: 0 | AN90: 0 | AO90: 0 | AP90: 0 | AQ90: 0
A91: 89 | B91: 1449 | C91: CORWITH-WESLEY | D91: 0 | E91: 0.1 | F91: 0.2 | G91: 2012 | H91: 0 | I91: 0.15 | J91: 0 | K91: 0 | L91: 0 | M91: 0 | N91: 0 | O91: 0 | P91: 1291720 | Q91: 14.00594 | R91: 7608 | S91: 0.08249 | T91: 60140 | U91: 0.65209 | V91: 50000 | W91: 0.54214 | X91: 92226557 | Y91: 0 | Z91: 0 | AA91: 0 | AB91: 0 | AC91: 0 | AD91: 30435 | AE91: 0.33 | AF91: 0 | AG91: 0 | AH91: 0 | AI91: 0 | AJ91: 1372155 | AK91: 14.87808 | AL91: 72854 | AM91: 0.1 | AN91: 72854 | AO91: 0.1 | AP91: 0 | AQ91: 0
A92: 90 | B92: 1476 | C92: COUNCIL BLUFFS | D92: 0 | E92: 0.0217 | F92: 0 | G92: 2016 | H92: 0 | I92: 0 | J92: 0 | K92: 0 | L92: 0.67 | M92: 2018 | N92: 0 | O92: 2.7 | P92: 31765115 | Q92: 16.31441 | R92: 817412 | S92: 0.41982 | T92: 0 | U92: 0 | V92: 1449994 | W92: 0.74471 | X92: 1947058763 | Y92: 145446956 | Z92: 0 | AA92: 0 | AB92: 1401979 | AC92: 0.67 | AD92: 690527 | AE92: 0.33 | AF92: 0 | AG92: 0 | AH92: 1103420 | AI92: 0.52732 | AJ92: 36411035 | AK92: 18.58644 | AL92: 0 | AM92: 0 | AN92: 0 | AO92: 0 | AP92: 0 | AQ92: 0
A93: 91 | B93: 1503 | C93: CRESTON | D93: 0 | E93: 0 | F93: 0 | G93: 0 | H93: 0 | I93: 0 | J93: 0 | K93: 0 | L93: 0.67 | M93: 2015 | N93: 0 | O93: 2.7 | P93: 3700919 | Q93: 12.89313 | R93: 0 | S93: 0 | T93: 0 | U93: 0 | V93: 261499 | W93: 0.911 | X93: 287045795 | Y93: 32355279 | Z93: 0 | AA93: 0 | AB93: 97641 | AC93: 0.3057 | AD93: 105402 | AE93: 0.33 | AF93: 0 | AG93: 0 | AH93: 615291 | AI93: 1.92639 | AJ93: 4780752 | AK93: 16.36622 | AL93: 0 | AM93: 0 | AN93: 0 | AO93: 0 | AP93: 116358 | AQ93: 0.02
A94: 92 | B94: 1576 | C94: DALLAS CENTER-GRIMES | D94: 0 | E94: 0.1 | F94: 0 | G94: 2014 | H94: 0 | I94: 0 | J94: 0 | K94: 0 | L94: 1.34 | M94: 2016 | N94: 0 | O94: 3 | P94: 7513166 | Q94: 12.27714 | R94: 885507 | S94: 1.44699 | T94: 0 | U94: 0 | V94: 636999 | W94: 1.04091 | X94: 611963877 | Y94: 52123933 | Z94: 0 | AA94: 0 | AB94: 889878 | AC94: 1.34 | AD94: 219149 | AE94: 0.33 | AF94: 0 | AG94: 0 | AH94: 1025697 | AI94: 1.54452 | AJ94: 10284889 | AK94: 16.53257 | AL94: 0 | AM94: 0 | AN94: 0 | AO94: 0 | AP94: 0 | AQ94: 0
A95: 93 | B95: 9007 | C95: DALLAS CENTER-GRIMES DEBT | D95: 0 | E95: 0 | F95: 0 | G95: 0 | H95: 0 | I95: 0 | J95: 0 | K95: 0 | L95: 0 | M95: 0 | N95: 0 | O95: 3 | P95: 0 | Q95: 0 | R95: 0 | S95: 0 | T95: 0 | U95: 0 | V95: 0 | W95: 0 | X95: 752082805 | Y95: 65623933 | Z95: 0 | AA95: 0 | AB95: 0 | AC95: 0 | AD95: 0 | AE95: 0 | AF95: 0 | AG95: 0 | AH95: 791499 | AI95: 0.96795 | AJ95: 791499 | AK95: 0.96795 | AL95: 0 | AM95: 0 | AN95: 0 | AO95: 0 | AP95: 0 | AQ95: 0
A96: 94 | B96: 1602 | C96: DANVILLE | D96: 0 | E96: 0.1 | F96: 0.2 | G96: 2017 | H96: 0 | I96: 0 | J96: 0 | K96: 0 | L96: 0 | M96: 0 | N96: 0 | O96: 4.05 | P96: 1463134 | Q96: 14.72843 | R96: 2150 | S96: 0.02164 | T96: 0 | U96: 0 | V96: 110000 | W96: 1.1073 | X96: 99340765 | Y96: 0 | Z96: 0 | AA96: 0 | AB96: 0 | AC96: 0 | AD96: 32782 | AE96: 0.33 | AF96: 0 | AG96: 0 | AH96: 109034 | AI96: 1.09758 | AJ96: 1714950 | AK96: 17.26331 | AL96: 191248 | AM96: 0.1 | AN96: 0 | AO96: 0 | AP96: 0 | AQ96: 0
A97: 95 | B97: 1611 | C97: DAVENPORT | D97: 0 | E97: 0.1 | F97: 0 | G97: 2012 | H97: 0 | I97: 0 | J97: 0 | K97: 0 | L97: 0.97 | M97: 2019 | N97: 0 | O97: 2.7 | P97: 57321478 | Q97: 15.3573 | R97: 6764621 | S97: 1.81235 | T97: 0 | U97: 0 | V97: 1700015 | W97: 0.45546 | X97: 3732523143 | Y97: 106336358 | Z97: 0 | AA97: 0 | AB97: 3723694 | AC97: 0.97 | AD97: 1266824 | AE97: 0.33 | AF97: 0 | AG97: 0 | AH97: 0 | AI97: 0 | AJ97: 64012011 | AK97: 17.11276 | AL97: 0 | AM97: 0 | AN97: 0 | AO97: 0 | AP97: 0 | AQ97: 0
A98: 96 | B98: 1619 | C98: DAVIS COUNTY | D98: 0 | E98: 0.1 | F98: 0 | G98: 2015 | H98: 0 | I98: 0 | J98: 0 | K98: 0 | L98: 0 | M98: 0 | N98: 0 | O98: 2.7 | P98: 3043808 | Q98: 12.71705 | R98: 329177 | S98: 1.3753 | T98: 0 | U98: 0 | V98: 283001 | W98: 1.18238 | X98: 239348598 | Y98: 8104494 | Z98: 0 | AA98: 0 | AB98: 0 | AC98: 0 | AD98: 81660 | AE98: 0.33 | AF98: 0 | AG98: 0 | AH98: 0 | AI98: 0 | AJ98: 3408469 | AK98: 14.22943 | AL98: 0 | AM98: 0 | AN98: 0 | AO98: 0 | AP98: 0 | AQ98: 0
A99: 97 | B99: 1638 | C99: DECORAH | D99: 0 | E99: 0.1 | F99: 0.2 | G99: 2012 | H99: 0 | I99: 0 | J99: 0 | K99: 0 | L99: 1.34 | M99: 2014 | N99: 0 | O99: 2.7 | P99: 5261089 | Q99: 11.32961 | R99: 232727 | S99: 0.50117 | T99: 0 | U99: 0 | V99: 550000 | W99: 1.18441 | X99: 464366260 | Y99: 9243502 | Z99: 0 | AA99: 0 | AB99: 634637 | AC99: 1.34 | AD99: 156291 | AE99: 0.33 | AF99: 0 | AG99: 0 | AH99: 778217 | AI99: 1.64316 | AJ99: 7380234 | AK99: 15.82718 | AL99: 434918 | AM99: 0.05 | AN99: 0 | AO99: 0 | AP99: 0 | AQ99: 0
A100: 98 | B100: 1675 | C100: DELWOOD | D100: 0 | E100: 0.1 | F100: 0.2 | G100: 2011 | H100: 0 | I100: 0.25 | J100: 0 | K100: 0 | L100: 0.67 | M100: 2017 | N100: 0 | O100: 0 | P100: 756216 | Q100: 11.47355 | R100: 32103 | S100: 0.48708 | T100: 144326 | U100: 2.18976 | V100: 25000 | W100: 0.37931 | X100: 65909533 | Y100: 0 | Z100: 0 | AA100: 0 | AB100: 0 | AC100: 0 | AD100: 0 | AE100: 0 | AF100: 0 | AG100: 0 | AH100: 0 | AI100: 0 | AJ100: 781216 | AK100: 11.85286 | AL100: 79356 | AM100: 0.1 | AN100: 0 | AO100: 0 | AP100: 0 | AQ100: 0
A101: 99 | B101: 1701 | C101: DENISON | D101: 0 | E101: 0.08 | F101: 0.1 | G101: 2011 | H101: 0 | I101: 0 | J101: 0 | K101: 0 | L101: 0 | M101: 0 | N101: 0 | O101: 2.7 | P101: 3405678 | Q101: 11.73922 | R101: 60352 | S101: 0.20803 | T101: 0 | U101: 0 | V101: 339999 | W101: 1.17196 | X101: 290111130 | Y101: 16320000 | Z101: 0 | AA101: 0 | AB101: 0 | AC101: 0 | AD101: 101122 | AE101: 0.33 | AF101: 0 | AG101: 0 | AH101: 374808 | AI101: 1.22314 | AJ101: 4221607 | AK101: 14.46432 | AL101: 446564 | AM101: 0.07 | AN101: 0 | AO101: 0 | AP101: 0 | AQ101: 0
A102: 100 | B102: 1719 | C102: DENVER | D102: 0 | E102: 0.1 | F102: 0.04 | G102: 2013 | H102: 0 | I102: 0 | J102: 0 | K102: 0 | L102: 0.67 | M102: 2017 | N102: 0 | O102: 2.7 | P102: 2209391 | Q102: 14.10158 | R102: 123258 | S102: 0.7867 | T102: 0 | U102: 0 | V102: 129999 | W102: 0.82973 | X102: 156676860 | Y102: 3792960 | Z102: 0 | AA102: 0 | AB102: 107515 | AC102: 0.67 | AD102: 52955 | AE102: 0.33 | AF102: 0 | AG102: 0 | AH102: 0 | AI102: 0 | AJ102: 2499860 | AK102: 15.93131 | AL102: 180011 | AM102: 0.04 | AN102: 0 | AO102: 0 | AP102: 0 | AQ102: 0
A103: 101 | B103: 1737 | C103: DES MOINES | D103: 0 | E103: 0.1 | F103: 0 | G103: 2016 | H103: 0 | I103: 0 | J103: 0 | K103: 0 | L103: 0.63 | M103: 2011 | N103: 0.135 | O103: 2.7 | P103: 95710581 | Q103: 14.99363 | R103: 12516843 | S103: 1.96084 | T103: 0 | U103: 0 | V103: 9925191 | W103: 1.55484 | X103: 6383416237 | Y103: 656551890 | Z103: 0 | AA103: 0 | AB103: 4435180 | AC103: 0.63 | AD103: 2323189 | AE103: 0.33 | AF103: 861761 | AG103: 0.135 | AH103: 0 | AI103: 0 | AJ103: 113255902 | AK103: 17.64347 | AL103: 0 | AM103: 0 | AN103: 0 | AO103: 0 | AP103: 0 | AQ103: 0
A104: 102 | B104: 1782 | C104: DIAGONAL | D104: 0 | E104: 0.1 | F104: 0.2 | G104: 2020 | H104: 0 | I104: 0 | J104: 0 | K104: 0 | L104: 1.34 | M104: 2016 | N104: 0 | O104: 2.7 | P104: 504003 | Q104: 17.08587 | R104: 141 | S104: 0.00478 | T104: 0 | U104: 0 | V104: 35000 | W104: 1.18651 | X104: 29498233 | Y104: 0 | Z104: 0 | AA104: 0 | AB104: 39528 | AC104: 1.34 | AD104: 9734 | AE104: 0.33 | AF104: 0 | AG104: 0 | AH104: 0 | AI104: 0 | AJ104: 588265 | AK104: 19.94238 | AL104: 44035 | AM104: 0.16 | AN104: 0 | AO104: 0 | AP104: 0 | AQ104: 0
A105: 103 | B105: 1791 | C105: DIKE-NEW HARTFORD (DIKE) | D105: 0 | E105: 0.1 | F105: 0.2 | G105: 2012 | H105: 0 | I105: 0 | J105: 0 | K105: 0 | L105: 0.5 | M105: 2020 | N105: 0 | O105: 2.7 | P105: 1465352 | Q105: 12.06396 | R105: 46117 | S105: 0.37967 | T105: 0 | U105: 0 | V105: 96344 | W105: 0.79318 | X105: 121465267 | Y105: 15212903 | Z105: 0 | AA105: 0 | AB105: 68339 | AC105: 0.5 | AD105: 45104 | AE105: 0.33 | AF105: 0 | AG105: 0 | AH105: 119205 | AI105: 0.87216 | AJ105: 1794344 | AK105: 14.5593 | AL105: 291313 | AM105: 0.07 | AN105: 0 | AO105: 0 | AP105: 0 | AQ105: 0
A106: 104 | B106: 4671 | C106: DIKE-NEW HARTFORD (NEW HARTFORD) | D106: 0 | E106: 0 | F106: 0 | G106: 0 | H106: 0 | I106: 0 | J106: 0 | K106: 0 | L106: 0 | M106: 0 | N106: 0 | O106: 2.7 | P106: 816076 | Q106: 12.06396 | R106: 0 | S106: 0 | T106: 0 | U106: 0 | V106: 53655 | W106: 0.79318 | X106: 67645742 | Y106: 0 | Z106: 0 | AA106: 0 | AB106: 33823 | AC106: 0.5 | AD106: 22323 | AE106: 0.33 | AF106: 0 | AG106: 0 | AH106: 32016 | AI106: 0.47329 | AJ106: 957893 | AK106: 14.16043 | AL106: 0 | AM106: 0 | AN106: 0 | AO106: 0 | AP106: 0 | AQ106: 0
A107: 105 | B107: 9006 | C107: DIKE-NEW HARTFORD(NEW HARTFORD DEBT | D107: 0 | E107: 0 | F107: 0 | G107: 0 | H107: 0 | I107: 0 | J107: 0 | K107: 0 | L107: 0 | M107: 0 | N107: 0 | O107: 2.7 | P107: 0 | Q107: 0 | R107: 0 | S107: 0 | T107: 0 | U107: 0 | V107: 0 | W107: 0 | X107: 70317126 | Y107: 0 | Z107: 0 | AA107: 0 | AB107: 0 | AC107: 0 | AD107: 0 | AE107: 0 | AF107: 0 | AG107: 0 | AH107: 54515 | AI107: 0.77527 | AJ107: 54515 | AK107: 0.77527 | AL107: 0 | AM107: 0 | AN107: 0 | AO107: 0 | AP107: 0 | AQ107: 0
A108: 106 | B108: 1854 | C108: DOWS | D108: 0 | E108: 0.1 | F108: 0 | G108: 2014 | H108: 0 | I108: 0 | J108: 0 | K108: 0 | L108: 0.67 | M108: 2018 | N108: 0 | O108: 2.7 | P108: 807212 | Q108: 9.606 | R108: 76526 | S108: 0.91068 | T108: 0 | U108: 0 | V108: 80000 | W108: 0.95202 | X108: 84032031 | Y108: 206500 | Z108: 0 | AA108: 0 | AB108: 56440 | AC108: 0.67 | AD108: 27799 | AE108: 0.33 | AF108: 0 | AG108: 0 | AH108: 0 | AI108: 0 | AJ108: 971451 | AK108: 11.55802 | AL108: 0 | AM108: 0 | AN108: 0 | AO108: 0 | AP108: 0 | AQ108: 0
A109: 107 | B109: 1863 | C109: DUBUQUE | D109: 0 | E109: 0.1 | F109: 0 | G109: 2019 | H109: 0 | I109: 0 | J109: 0 | K109: 0 | L109: 0.67 | M109: 2017 | N109: 0 | O109: 0 | P109: 41296259 | Q109: 15.1498 | R109: 4666218 | S109: 1.71183 | T109: 0 | U109: 0 | V109: 1999937 | W109: 0.73369 | X109: 2725861649 | Y109: 276879231 | Z109: 0 | AA109: 0 | AB109: 2011836 | AC109: 0.67 | AD109: 990904 | AE109: 0.33 | AF109: 0 | AG109: 0 | AH109: 0 | AI109: 0 | AJ109: 46298936 | AK109: 16.88349 | AL109: 0 | AM109: 0 | AN109: 0 | AO109: 0 | AP109: 0 | AQ109: 0
A110: 108 | B110: 1908 | C110: DUNKERTON | D110: 0 | E110: 0.1 | F110: 0.2 | G110: 2012 | H110: 0 | I110: 0 | J110: 0 | K110: 0 | L110: 1.34 | M110: 2020 | N110: 0 | O110: 2.7 | P110: 1537614 | Q110: 12.5908 | R110: 32170 | S110: 0.26343 | T110: 0 | U110: 0 | V110: 37500 | W110: 0.30707 | X110: 122122004 | Y110: 1638802 | Z110: 0 | AA110: 0 | AB110: 165839 | AC110: 1.34 | AD110: 40841 | AE110: 0.33 | AF110: 0 | AG110: 0 | AH110: 170028 | AI110: 1.37384 | AJ110: 1951822 | AK110: 15.94171 | AL110: 178097 | AM110: 0.1 | AN110: 0 | AO110: 0 | AP110: 0 | AQ110: 0
A111: 109 | B111: 1926 | C111: DURANT | D111: 0 | E111: 0.1 | F111: 0.1 | G111: 2014 | H111: 0 | I111: 0 | J111: 0 | K111: 0 | L111: 0.67 | M111: 2020 | N111: 0 | O111: 2.7 | P111: 1773092 | Q111: 10.02579 | R111: 137700 | S111: 0.77861 | T111: 0 | U111: 0 | V111: 133204 | W111: 0.75319 | X111: 176853094 | Y111: 17085496 | Z111: 0 | AA111: 0 | AB111: 21277 | AC111: 0.10971 | AD111: 64000 | AE111: 0.33 | AF111: 0 | AG111: 0 | AH111: 120973 | AI111: 0.62377 | AJ111: 2112546 | AK111: 11.84246 | AL111: 135828 | AM111: 0.05 | AN111: 0 | AO111: 0 | AP111: 108662 | AQ111: 0.04
A112: 110 | B112: 1944 | C112: EAGLE GROVE | D112: 0 | E112: 0.07 | F112: 0.07 | G112: 2016 | H112: 0 | I112: 0 | J112: 0 | K112: 0 | L112: 0.67 | M112: 2015 | N112: 0 | O112: 2.7 | P112: 3316646 | Q112: 15.36926 | R112: 44141 | S112: 0.20455 | T112: 0 | U112: 0 | V112: 224999 | W112: 1.04264 | X112: 215797389 | Y112: 2065803 | Z112: 0 | AA112: 0 | AB112: 145968 | AC112: 0.67 | AD112: 71895 | AE112: 0.33 | AF112: 0 | AG112: 0 | AH112: 0 | AI112: 0 | AJ112: 3759508 | AK112: 17.4119 | AL112: 221847 | AM112: 0.07 | AN112: 0 | AO112: 0 | AP112: 0 | AQ112: 0
A113: 111 | B113: 1953 | C113: EARLHAM | D113: 0 | E113: 0 | F113: 0 | G113: 0 | H113: 0 | I113: 0 | J113: 0 | K113: 0 | L113: 1 | M113: 2012 | N113: 0 | O113: 2.7 | P113: 2010201 | Q113: 13.84131 | R113: 0 | S113: 0 | T113: 0 | U113: 0 | V113: 80777 | W113: 0.55619 | X113: 145231975 | Y113: 0 | Z113: 0 | AA113: 0 | AB113: 120543 | AC113: 0.83 | AD113: 47927 | AE113: 0.33 | AF113: 0 | AG113: 0 | AH113: 101535 | AI113: 0.69912 | AJ113: 2360983 | AK113: 16.25662 | AL113: 0 | AM113: 0 | AN113: 0 | AO113: 0 | AP113: 0 | AQ113: 0
A114: 112 | B114: 1963 | C114: EAST BUCHANAN | D114: 0 | E114: 0.1 | F114: 0.2 | G114: 2015 | H114: 0 | I114: 0 | J114: 0 | K114: 0 | L114: 1 | M114: 2015 | N114: 0 | O114: 0 | P114: 1795025 | Q114: 11.69402 | R114: 11667 | S114: 0.07601 | T114: 0 | U114: 0 | V114: 190000 | W114: 1.23779 | X114: 153499369 | Y114: 238814 | Z114: 0 | AA114: 0 | AB114: 153738 | AC114: 1 | AD114: 50734 | AE114: 0.33 | AF114: 0 | AG114: 0 | AH114: 0 | AI114: 0 | AJ114: 2189497 | AK114: 14.26181 | AL114: 237936 | AM114: 0.11 | AN114: 0 | AO114: 0 | AP114: 0 | AQ114: 0
A115: 113 | B115: 1965 | C115: EAST CENTRAL | D115: 0 | E115: 0.1 | F115: 0 | G115: 2016 | H115: 0 | I115: 0 | J115: 0 | K115: 0 | L115: 0 | M115: 0 | N115: 0 | O115: 0 | P115: 1317347 | Q115: 13.08317 | R115: 171642 | S115: 1.70465 | T115: 0 | U115: 0 | V115: 97000 | W115: 0.96335 | X115: 100690236 | Y115: 0 | Z115: 0 | AA115: 0 | AB115: 0 | AC115: 0 | AD115: 0 | AE115: 0 | AF115: 0 | AG115: 0 | AH115: 0 | AI115: 0 | AJ115: 1414347 | AK115: 14.04652 | AL115: 0 | AM115: 0 | AN115: 0 | AO115: 0 | AP115: 0 | AQ115: 0
A116: 114 | B116: 1967 | C116: EAST GREENE | D116: 0 | E116: 0.1 | F116: 0.2 | G116: 2012 | H116: 0 | I116: 0 | J116: 0 | K116: 0 | L116: 0 | M116: 0 | N116: 0 | O116: 0 | P116: 1684896 | Q116: 13.90535 | R116: 56542 | S116: 0.46664 | T116: 0 | U116: 0 | V116: 155001 | W116: 1.27921 | X116: 121168927 | Y116: 0 | Z116: 0 | AA116: 0 | AB116: 0 | AC116: 0 | AD116: 36000 | AE116: 0.29711 | AF116: 0 | AG116: 0 | AH116: 0 | AI116: 0 | AJ116: 1875897 | AK116: 15.48167 | AL116: 117197 | AM116: 0.1 | AN116: 0 | AO116: 0 | AP116: 0 | AQ116: 0
A117: 115 | B117: 3582 | C117: EAST MARSHALL | D117: 0 | E117: 0.1 | F117: 0.2 | G117: 2012 | H117: 0 | I117: 0 | J117: 0 | K117: 0 | L117: 0.67 | M117: 2015 | N117: 0.135 | O117: 2.7 | P117: 2471495 | Q117: 13.69312 | R117: 2771 | S117: 0.01535 | T117: 0 | U117: 0 | V117: 240000 | W117: 1.3297 | X117: 180491739 | Y117: 0 | Z117: 0 | AA117: 0 | AB117: 120929 | AC117: 0.67 | AD117: 59562 | AE117: 0.33 | AF117: 24366 | AG117: 0.135 | AH117: 63172 | AI117: 0.35 | AJ117: 2979524 | AK117: 16.50782 | AL117: 310613 | AM117: 0.12 | AN117: 0 | AO117: 0 | AP117: 0 | AQ117: 0
A118: 116 | B118: 1970 | C118: EAST UNION | D118: 0 | E118: 0.1 | F118: 0.2 | G118: 2014 | H118: 0 | I118: 0 | J118: 0 | K118: 0 | L118: 0 | M118: 0 | N118: 0 | O118: 2.7 | P118: 1584455 | Q118: 13.10795 | R118: 5240 | S118: 0.04335 | T118: 0 | U118: 0 | V118: 95000 | W118: 0.78592 | X118: 120877426 | Y118: 0 | Z118: 0 | AA118: 0 | AB118: 0 | AC118: 0 | AD118: 39890 | AE118: 0.33 | AF118: 0 | AG118: 0 | AH118: 296423 | AI118: 2.45226 | AJ118: 2015768 | AK118: 16.67613 | AL118: 212692 | AM118: 0.13 | AN118: 0 | AO118: 0 | AP118: 0 | AQ118: 0
A119: 117 | B119: 1972 | C119: EASTERN ALLAMAKEE | D119: 0 | E119: 0.1 | F119: 0.1 | G119: 2014 | H119: 0 | I119: 0 | J119: 0 | K119: 0 | L119: 0 | M119: 0 | N119: 0 | O119: 2.7 | P119: 1559487 | Q119: 9.04206 | R119: 60149 | S119: 0.34875 | T119: 0 | U119: 0 | V119: 173000 | W119: 1.00307 | X119: 172470291 | Y119: 0 | Z119: 0 | AA119: 0 | AB119: 0 | AC119: 0 | AD119: 56915 | AE119: 0.33 | AF119: 0 | AG119: 0 | AH119: 344941 | AI119: 2 | AJ119: 2134343 | AK119: 12.37513 | AL119: 151520 | AM119: 0.1 | AN119: 0 | AO119: 0 | AP119: 0 | AQ119: 0
A120: 118 | B120: 657 | C120: EDDYVILLE-BLAKESBURG | D120: 0 | E120: 0.1 | F120: 0.2 | G120: 2011 | H120: 0 | I120: 0 | J120: 0 | K120: 0 | L120: 0 | M120: 0 | N120: 0 | O120: 4.05 | P120: 3717903 | Q120: 11.31663 | R120: 143072 | S120: 0.43549 | T120: 0 | U120: 0 | V120: 275000 | W120: 0.83705 | X120: 328534436 | Y120: 0 | Z120: 0 | AA120: 0 | AB120: 0 | AC120: 0 | AD120: 108416 | AE120: 0.33 | AF120: 0 | AG120: 0 | AH120: 0 | AI120: 0 | AJ120: 4101319 | AK120: 12.48368 | AL120: 223208 | AM120: 0.1 | AN120: 0 | AO120: 0 | AP120: 0 | AQ120: 0
A121: 119 | B121: 1989 | C121: EDGEWOOD-COLESBURG | D121: 0 | E121: 0.1 | F121: 0.1 | G121: 2015 | H121: 0 | I121: 0 | J121: 0 | K121: 0 | L121: 0 | M121: 0 | N121: 0 | O121: 2.7 | P121: 1344234 | Q121: 11.89106 | R121: 80924 | S121: 0.71585 | T121: 0 | U121: 0 | V121: 135000 | W121: 1.19421 | X121: 113045789 | Y121: 7874578 | Z121: 0 | AA121: 0 | AB121: 0 | AC121: 0 | AD121: 39904 | AE121: 0.33 | AF121: 0 | AG121: 0 | AH121: 142930 | AI121: 1.18202 | AJ121: 1662068 | AK121: 14.59729 | AL121: 124483 | AM121: 0.08 | AN121: 0 | AO121: 0 | AP121: 0 | AQ121: 0
A122: 120 | B122: 2007 | C122: ELDORA-NEW PROVIDENCE | D122: 0 | E122: 0.08 | F122: 0.07 | G122: 2011 | H122: 0 | I122: 0 | J122: 0 | K122: 0 | L122: 0 | M122: 0 | N122: 0 | O122: 4.05 | P122: 2574223 | Q122: 15.24697 | R122: 41758 | S122: 0.24733 | T122: 0 | U122: 0 | V122: 275000 | W122: 1.62881 | X122: 168835057 | Y122: 990 | Z122: 0 | AA122: 0 | AB122: 0 | AC122: 0 | AD122: 55716 | AE122: 0.33 | AF122: 0 | AG122: 0 | AH122: 214624 | AI122: 1.2712 | AJ122: 3119563 | AK122: 18.47698 | AL122: 184537 | AM122: 0.07 | AN122: 0 | AO122: 0 | AP122: 0 | AQ122: 0
A123: 121 | B123: 2016 | C123: ELK HORN-KIMBALLTON | D123: 0 | E123: 0.1 | F123: 0.1 | G123: 2011 | H123: 0 | I123: 0 | J123: 0 | K123: 0 | L123: 0.67 | M123: 2020 | N123: 0 | O123: 4.05 | P123: 943617 | Q123: 14.08905 | R123: 10585 | S123: 0.15804 | T123: 0 | U123: 0 | V123: 50000 | W123: 0.74654 | X123: 66975205 | Y123: 3259597 | Z123: 0 | AA123: 0 | AB123: 11299 | AC123: 0.16087 | AD123: 23177 | AE123: 0.33 | AF123: 0 | AG123: 0 | AH123: 85830 | AI123: 1.22204 | AJ123: 1113923 | AK123: 16.5485 | AL123: 107273 | AM123: 0.09 | AN123: 0 | AO123: 0 | AP123: 35758 | AQ123: 0.03
A124: 122 | B124: 2088 | C124: EMMETSBURG | D124: 0 | E124: 0.1 | F124: 0.2 | G124: 2012 | H124: 0 | I124: 0 | J124: 0 | K124: 0 | L124: 1.34 | M124: 2011 | N124: 0 | O124: 2.7 | P124: 3408246 | Q124: 12.47609 | R124: 100722 | S124: 0.3687 | T124: 0 | U124: 0 | V124: 239999 | W124: 0.87853 | X124: 273182207 | Y124: 18923713 | Z124: 0 | AA124: 0 | AB124: 215834 | AC124: 0.73889 | AD124: 0 | AE124: 0 | AF124: 0 | AG124: 0 | AH124: 0 | AI124: 0 | AJ124: 3864079 | AK124: 14.09351 | AL124: 245824 | AM124: 0.07 | AN124: 0 | AO124: 0 | AP124: 175589 | AQ124: 0.05
A125: 123 | B125: 1647 | C125: ENGLISH VALLEYS (DEEP RIV-MILLERSB) | D125: 0 | E125: 0 | F125: 0 | G125: 0 | H125: 0 | I125: 0 | J125: 0 | K125: 0 | L125: 0 | M125: 0 | N125: 0 | O125: 0 | P125: 552324 | Q125: 12.4713 | R125: 0 | S125: 0 | T125: 0 | U125: 0 | V125: 33468 | W125: 0.75569 | X125: 44287579 | Y125: 0 | Z125: 0 | AA125: 0 | AB125: 9000 | AC125: 0.20322 | AD125: 0 | AE125: 0 | AF125: 0 | AG125: 0 | AH125: 0 | AI125: 0 | AJ125: 594792 | AK125: 13.43021 | AL125: 0 | AM125: 0 | AN125: 0 | AO125: 0 | AP125: 0 | AQ125: 0
A126: 124 | B126: 2097 | C126: ENGLISH VALLEYS (ENGLISH VALLEYS) | D126: 0 | E126: 0.1 | F126: 0.2 | G126: 2012 | H126: 0 | I126: 0 | J126: 0 | K126: 0 | L126: 0.67 | M126: 2015 | N126: 0 | O126: 4.05 | P126: 1428052 | Q126: 12.4713 | R126: 30714 | S126: 0.26823 | T126: 0 | U126: 0 | V126: 86532 | W126: 0.75569 | X126: 114507044 | Y126: 0 | Z126: 0 | AA126: 0 | AB126: 23270 | AC126: 0.20322 | AD126: 0 | AE126: 0 | AF126: 0 | AG126: 0 | AH126: 247828 | AI126: 2.1643 | AJ126: 1785682 | AK126: 15.59451 | AL126: 222366 | AM126: 0.15 | AN126: 0 | AO126: 0 | AP126: 74122 | AQ126: 0.05
A127: 125 | B127: 2113 | C127: ESSEX | D127: 0 | E127: 0.1 | F127: 0.2 | G127: 2015 | H127: 0 | I127: 0 | J127: 0 | K127: 0 | L127: 0 | M127: 0 | N127: 0 | O127: 2.7 | P127: 863369 | Q127: 12.8742 | R127: 16612 | S127: 0.24771 | T127: 0 | U127: 0 | V127: 70000 | W127: 1.04381 | X127: 67061975 | Y127: 561810 | Z127: 0 | AA127: 0 | AB127: 0 | AC127: 0 | AD127: 22316 | AE127: 0.33 | AF127: 0 | AG127: 0 | AH127: 0 | AI127: 0 | AJ127: 955685 | AK127: 14.24801 | AL127: 93488 | AM127: 0.09 | AN127: 0 | AO127: 0 | AP127: 0 | AQ127: 0
A128: 126 | B128: 2124 | C128: ESTHERVILLE-LINCOLN CENTRAL | D128: 0 | E128: 0.1 | F128: 0.2 | G128: 2011 | H128: 0 | I128: 0 | J128: 0 | K128: 0 | L128: 1 | M128: 2018 | N128: 0 | O128: 2.7 | P128: 4153543 | Q128: 14.02327 | R128: 18227 | S128: 0.06154 | T128: 0 | U128: 0 | V128: 649999 | W128: 2.19454 | X128: 296189315 | Y128: 4515000 | Z128: 0 | AA128: 0 | AB128: 300704 | AC128: 1 | AD128: 99232 | AE128: 0.33 | AF128: 0 | AG128: 0 | AH128: 436117 | AI128: 1.45032 | AJ128: 5639595 | AK128: 18.99813 | AL128: 541701 | AM128: 0.1 | AN128: 0 | AO128: 0 | AP128: 0 | AQ128: 0
A129: 127 | B129: 2151 | C129: EXIRA | D129: 0 | E129: 0.1 | F129: 0.09 | G129: 2012 | H129: 0 | I129: 0 | J129: 0 | K129: 0 | L129: 1.34 | M129: 2019 | N129: 0 | O129: 0 | P129: 1366792 | Q129: 15.00614 | R129: 17805 | S129: 0.19548 | T129: 0 | U129: 0 | V129: 75000 | W129: 0.82343 | X129: 91082159 | Y129: 0 | Z129: 0 | AA129: 0 | AB129: 122050 | AC129: 1.34 | AD129: 30057 | AE129: 0.33 | AF129: 0 | AG129: 0 | AH129: 0 | AI129: 0 | AJ129: 1593899 | AK129: 17.49957 | AL129: 112079 | AM129: 0.09 | AN129: 0 | AO129: 0 | AP129: 0 | AQ129: 0
A130: 128 | B130: 2169 | C130: FAIRFIELD | D130: 0 | E130: 0.1 | F130: 0.2 | G130: 2012 | H130: 0 | I130: 0 | J130: 0 | K130: 0 | L130: 0.67 | M130: 2015 | N130: 0 | O130: 0 | P130: 7559137 | Q130: 13.59876 | R130: 378891 | S130: 0.68162 | T130: 0 | U130: 0 | V130: 663252 | W130: 1.19318 | X130: 555869565 | Y130: 14344004 | Z130: 0 | AA130: 0 | AB130: 382043 | AC130: 0.67 | AD130: 0 | AE130: 0 | AF130: 0 | AG130: 0 | AH130: 0 | AI130: 0 | AJ130: 8604432 | AK130: 15.46194 | AL130: 451186 | AM130: 0.04 | AN130: 0 | AO130: 0 | AP130: 0 | AQ130: 0
A131: 129 | B131: 2205 | C131: FARRAGUT | D131: 0 | E131: 0.1 | F131: 0.2 | G131: 2012 | H131: 0 | I131: 0 | J131: 0 | K131: 0 | L131: 0 | M131: 0 | N131: 0 | O131: 0 | P131: 1255100 | Q131: 13.72436 | R131: 2928 | S131: 0.03202 | T131: 0 | U131: 0 | V131: 40000 | W131: 0.43739 | X131: 91450542 | Y131: 0 | Z131: 0 | AA131: 0 | AB131: 0 | AC131: 0 | AD131: 26766 | AE131: 0.29268 | AF131: 0 | AG131: 0 | AH131: 0 | AI131: 0 | AJ131: 1321866 | AK131: 14.45443 | AL131: 124885 | AM131: 0.11 | AN131: 0 | AO131: 0 | AP131: 0 | AQ131: 0
A132: 130 | B132: 2295 | C132: FOREST CITY | D132: 0 | E132: 0.1 | F132: 0.2 | G132: 2014 | H132: 0 | I132: 0 | J132: 0 | K132: 0 | L132: 0 | M132: 0 | N132: 0 | O132: 2.7 | P132: =ROUND(($X132/1000)*Q132,0) -> 3791021 | Q132: 15.39025 | R132: 19195 | S132: =ROUND(R132/(X132/1000),5) -> 0.07793 | T132: 0 | U132: 0 | V132: =ROUND(($X132/1000)*W132,0) -> 249999 | W132: 1.01491 | X132: 246326149 | Y132: 11386166 | Z132: =ROUND(($X132/1000)*AA132,0) -> 0 | AA132: 0 | AB132: =ROUND((($X132+$Y132)/1000)*AC132,0) -> 0 | AC132: 0 | AD132: =ROUND((($X132+$Y132)/1000)*AE132,0) -> 85045 | AE132: 0.33 | AF132: =ROUND(($X132/1000)*AG132,0) -> 0 | AG132: 0 | AH132: =ROUND((($X132+$Y132)/1000)*AI132,0) -> 0 | AI132: 0 | AJ132: =P132+V132+Z132+AB132+AD132+AF132+AH132 -> 4126065 | AK132: 16.73516 | AL132: 486281 | AM132: 0.1 | AN132: 0 | AO132: 0 | AP132: 0 | AQ132: 0
A133: 131 | B133: 2313 | C133: FORT DODGE | D133: 0 | E133: 0.08 | F133: 0.03 | G133: 2014 | H133: 0 | I133: 0 | J133: 0 | K133: 0 | L133: 0.67 | M133: 2014 | N133: 0 | O133: 0 | P133: 12192098 | Q133: 14.9223 | R133: 634027 | S133: 0.77601 | T133: 0 | U133: =ROUND(T133/(X133/1000),5) -> 0 | V133: 1250004 | W133: 1.52992 | X133: 817038776 | Y133: 26586313 | Z133: 0 | AA133: 0 | AB133: 565229 | AC133: 0.67 | AD133: 278396 | AE133: 0.33 | AF133: 0 | AG133: 0 | AH133: 0 | AI133: 0 | AJ133: 14285727 | AK133: 17.45222 | AL133: 646474 | AM133: 0.03 | AN133: 0 | AO133: 0 | AP133: 0 | AQ133: 0
A134: 132 | B134: 2322 | C134: FORT MADISON | D134: 0 | E134: 0 | F134: 0 | G134: 0 | H134: 0 | I134: 0 | J134: 0 | K134: 0 | L134: 0 | M134: 0 | N134: 0 | O134: 2.7 | P134: 7104826 | Q134: 14.59033 | R134: 0 | S134: 0 | T134: 0 | U134: 0 | V134: 457499 | W134: 0.93951 | X134: 486954409 | Y134: 8215997 | Z134: 0 | AA134: 0 | AB134: 0 | AC134: 0 | AD134: 163406 | AE134: 0.33 | AF134: 0 | AG134: 0 | AH134: 0 | AI134: 0 | AJ134: 7725731 | AK134: 15.85984 | AL134: 0 | AM134: 0 | AN134: 0 | AO134: 0 | AP134: 0 | AQ134: 0
A135: 133 | B135: 2349 | C135: FREDERICKSBURG | D135: 0 | E135: 0.1 | F135: 0.1 | G135: 2012 | H135: 0 | I135: 0 | J135: 0 | K135: 0 | L135: 1.01 | M135: 2011 | N135: 0 | O135: 2.7 | P135: 961190 | Q135: 10.0204 | R135: 66824 | S135: 0.69664 | T135: 0 | U135: 0 | V135: 90000 | W135: 0.93825 | X135: 95923353 | Y135: 0 | Z135: 0 | AA135: 0 | AB135: 32236 | AC135: 0.33606 | AD135: 31655 | AE135: 0.33 | AF135: 0 | AG135: 0 | AH135: 83170 | AI135: 0.86705 | AJ135: 1198251 | AK135: 12.49176 | AL135: 64647 | AM135: 0.05 | AN135: 0 | AO135: 0 | AP135: 64647 | AQ135: 0.05
A136: 134 | B136: 2367 | C136: FREMONT | D136: 0 | E136: 0.1 | F136: 0.2 | G136: 2011 | H136: 0 | I136: 0 | J136: 0 | K136: 0 | L136: 0.67 | M136: 2017 | N136: 0 | O136: 1.35 | P136: 862051 | Q136: 16.07557 | R136: 48293 | S136: 0.90057 | T136: 0 | U136: 0 | V136: 35000 | W136: 0.65268 | X136: 53624913 | Y136: 0 | Z136: 0 | AA136: 0 | AB136: 3560 | AC136: 0.06639 | AD136: 17696 | AE136: 0.33 | AF136: 0 | AG136: 0 | AH136: 0 | AI136: 0 | AJ136: 918307 | AK136: 17.12464 | AL136: 45317 | AM136: 0.07 | AN136: 0 | AO136: 0 | AP136: 32369 | AQ136: 0.05
A137: 135 | B137: 2369 | C137: FREMONT-MILLS | D137: 0 | E137: 0.1 | F137: 0.2 | G137: 2013 | H137: 0 | I137: 0 | J137: 0 | K137: 0 | L137: 1.34 | M137: 2012 | N137: 0 | O137: 2.7 | P137: 1667148 | Q137: 13.83536 | R137: 35304 | S137: 0.29298 | T137: 0 | U137: 0 | V137: 75000 | W137: 0.62241 | X137: 120499105 | Y137: 0 | Z137: 0 | AA137: 0 | AB137: 58471 | AC137: 0.48524 | AD137: 39763 | AE137: 0.32999 | AF137: 0 | AG137: 0 | AH137: 188892 | AI137: 1.56758 | AJ137: 2029274 | AK137: 16.84058 | AL137: 171663 | AM137: 0.1 | AN137: 0 | AO137: 0 | AP137: 102998 | AQ137: 0.06
A138: 136 | B138: 2376 | C138: GALVA-HOLSTEIN | D138: 0 | E138: 0 | F138: 0 | G138: 0 | H138: 0 | I138: 0 | J138: 0 | K138: 0 | L138: 0.67 | M138: 2013 | N138: 0 | O138: 4.05 | P138: 1498601 | Q138: 8.69029 | R138: 0 | S138: 0 | T138: 0 | U138: 0 | V138: 249999 | W138: 1.44973 | X138: 172445499 | Y138: 3912999 | Z138: 0 | AA138: 0 | AB138: 31145 | AC138: 0.1766 | AD138: 49999 | AE138: 0.28351 | AF138: 0 | AG138: 0 | AH138: 344351 | AI138: 1.95256 | AJ138: 2174095 | AK138: 12.55269 | AL138: 0 | AM138: 0 | AN138: 0 | AO138: 0 | AP138: 87015 | AQ138: 0.04
A139: 137 | B139: 2403 | C139: GARNER-HAYFIELD | D139: 0 | E139: 0.1 | F139: 0.2 | G139: 2014 | H139: 0 | I139: 0 | J139: 0 | K139: 0 | L139: 0.67 | M139: 2015 | N139: 0 | O139: 2.7 | P139: 2127410 | Q139: 10.95211 | R139: 84037 | S139: 0.43263 | T139: 0 | U139: 0 | V139: 225000 | W139: 1.15832 | X139: 194246585 | Y139: 15323099 | Z139: 0 | AA139: 0 | AB139: 48136 | AC139: 0.22969 | AD139: 69158 | AE139: 0.33 | AF139: 0 | AG139: 0 | AH139: 125170 | AI139: 0.59727 | AJ139: 2594874 | AK139: 13.26739 | AL139: 246066 | AM139: 0.08 | AN139: 0 | AO139: 0 | AP139: 92275 | AQ139: 0.03
A140: 138 | B140: 2457 | C140: GEORGE-LITTLE ROCK | D140: 0 | E140: 0.1 | F140: 0.15 | G140: 2013 | H140: 0 | I140: 0 | J140: 0 | K140: 0 | L140: 1.34 | M140: 2020 | N140: 0.135 | O140: 4.05 | P140: 1955295 | Q140: 12.01272 | R140: 789 | S140: 0.00485 | T140: 0 | U140: 0 | V140: 110001 | W140: 0.67581 | X140: 162768732 | Y140: 1603827 | Z140: 0 | AA140: 0 | AB140: 115067 | AC140: 0.70004 | AD140: 54243 | AE140: 0.33 | AF140: 21974 | AG140: 0.135 | AH140: 21801 | AI140: 0.13263 | AJ140: 2278381 | AK140: 13.9862 | AL140: 227913 | AM140: 0.13 | AN140: 0 | AO140: 0 | AP140: 105191 | AQ140: 0.06
A141: 139 | B141: 2466 | C141: GILBERT | D141: 0 | E141: 0.1 | F141: 0 | G141: 2012 | H141: 0 | I141: 0 | J141: 0 | K141: 0 | L141: 1.34 | M141: 2018 | N141: 0 | O141: 4.05 | P141: 4611742 | Q141: 14.75866 | R141: 514191 | S141: 1.64553 | T141: 0 | U141: 0 | V141: 349999 | W141: 1.12008 | X141: 312477018 | Y141: 0 | Z141: 0 | AA141: 0 | AB141: 418719 | AC141: 1.34 | AD141: 103117 | AE141: 0.33 | AF141: 0 | AG141: 0 | AH141: 764987 | AI141: 2.44814 | AJ141: 6248564 | AK141: 19.99688 | AL141: 0 | AM141: 0 | AN141: 0 | AO141: 0 | AP141: 0 | AQ141: 0
A142: 140 | B142: 2493 | C142: GILMORE CITY-BRADGATE | D142: 0 | E142: 0.1 | F142: 0.2 | G142: 2011 | H142: 0 | I142: 0 | J142: 0 | K142: 0 | L142: 0.675 | M142: 2020 | N142: 0 | O142: 0 | P142: 682746 | Q142: 9.03877 | R142: 1177 | S142: 0.01558 | T142: 0 | U142: 0 | V142: 150000 | W142: 1.98583 | X142: 75535237 | Y142: 534175 | Z142: 0 | AA142: 0 | AB142: 51347 | AC142: 0.675 | AD142: 25103 | AE142: 0.33 | AF142: 0 | AG142: 0 | AH142: 0 | AI142: 0 | AJ142: 909196 | AK142: 12.0296 | AL142: 78259 | AM142: 0.12 | AN142: 0 | AO142: 0 | AP142: 0 | AQ142: 0
A143: 141 | B143: 2502 | C143: GLADBROOK-REINBECK | D143: 0 | E143: 0.1 | F143: 0.2 | G143: 2015 | H143: 0 | I143: 0 | J143: 0 | K143: 0 | L143: 0.67 | M143: 2014 | N143: 0 | O143: 0 | P143: 2717519 | Q143: 12.02321 | R143: 20802 | S143: 0.09203 | T143: 0 | U143: 0 | V143: 170001 | W143: 0.75214 | X143: 226022720 | Y143: 14783805 | Z143: 0 | AA143: 0 | AB143: 116984 | AC143: 0.4858 | AD143: 79466 | AE143: 0.33 | AF143: 0 | AG143: 0 | AH143: 0 | AI143: 0 | AJ143: 3083970 | AK143: 13.59115 | AL143: 310486 | AM143: 0.07 | AN143: 0 | AO143: 0 | AP143: 44355 | AQ143: 0.01
A144: 142 | B144: 2511 | C144: GLENWOOD | D144: 0 | E144: 0 | F144: 0 | G144: 0 | H144: 0 | I144: 0 | J144: 0 | K144: 0 | L144: 0 | M144: 0 | N144: 0 | O144: 4.05 | P144: 5622971 | Q144: 13.17502 | R144: 0 | S144: 0 | T144: 0 | U144: 0 | V144: 500002 | W144: 1.17154 | X144: 426790326 | Y144: 13700654 | Z144: 0 | AA144: 0 | AB144: 0 | AC144: 0 | AD144: 145362 | AE144: 0.33 | AF144: 0 | AG144: 0 | AH144: 1593732 | AI144: 3.61808 | AJ144: 7862067 | AK144: 18.29464 | AL144: 0 | AM144: 0 | AN144: 0 | AO144: 0 | AP144: 0 | AQ144: 0
A145: 143 | B145: 2520 | C145: GLIDDEN-RALSTON | D145: 0 | E145: 0.1 | F145: 0.2 | G145: 2012 | H145: 0 | I145: 0 | J145: 0 | K145: 0 | L145: 0 | M145: 0 | N145: 0 | O145: 2.7 | P145: 1058914 | Q145: 9.4029 | R145: 27293 | S145: 0.24236 | T145: 0 | U145: 0 | V145: 85000 | W145: 0.75478 | X145: 112615669 | Y145: 365000 | Z145: 0 | AA145: 0 | AB145: 0 | AC145: 0 | AD145: 37284 | AE145: 0.33 | AF145: 0 | AG145: 0 | AH145: 76730 | AI145: 0.67914 | AJ145: 1257928 | AK145: 11.16682 | AL145: 138463 | AM145: 0.1 | AN145: 0 | AO145: 0 | AP145: 0 | AQ145: 0
A146: 144 | B146: 2682 | C146: GMG | D146: 0 | E146: 0.1 | F146: 0.13 | G146: 2012 | H146: 0 | I146: 0 | J146: 0 | K146: 0 | L146: 0.67 | M146: 2013 | N146: 0 | O146: 4.05 | P146: 1185217 | Q146: 10.34362 | R146: 11994 | S146: 0.10467 | T146: 0 | U146: 0 | V146: 95000 | W146: 0.82908 | X146: 114584379 | Y146: 0 | Z146: 0 | AA146: 0 | AB146: 0 | AC146: 0 | AD146: 0 | AE146: 0 | AF146: 0 | AG146: 0 | AH146: 391329 | AI146: 3.4152 | AJ146: 1671546 | AK146: 14.5879 | AL146: 154521 | AM146: 0.12 | AN146: 0 | AO146: 0 | AP146: 0 | AQ146: 0
A147: 145 | B147: 2556 | C147: GRAETTINGER-TERRIL | D147: 0 | E147: 0.1 | F147: 0.2 | G147: 2016 | H147: 0 | I147: 0 | J147: 0 | K147: 0 | L147: 1 | M147: 2020 | N147: 0 | O147: 2.7 | P147: 1749349 | Q147: 9.36083 | R147: 104977 | S147: 0.56174 | T147: 0 | U147: 0 | V147: 200001 | W147: 1.07021 | X147: 186879708 | Y147: 1391903 | Z147: 0 | AA147: 0 | AB147: 116723 | AC147: 0.61997 | AD147: 62130 | AE147: 0.33 | AF147: 0 | AG147: 0 | AH147: 0 | AI147: 0 | AJ147: 2128203 | AK147: 11.38101 | AL147: 95400 | AM147: 0.04 | AN147: 0 | AO147: 0 | AP147: 71550 | AQ147: 0.03
A148: 146 | B148: 2664 | C148: GREENE | D148: 0 | E148: 0.1 | F148: 0.2 | G148: 2015 | H148: 0 | I148: 0 | J148: 0 | K148: 0 | L148: 0.67 | M148: 2015 | N148: 0.135 | O148: 4.05 | P148: 1113141 | Q148: 10.15218 | R148: 144783 | S148: 1.32046 | T148: 0 | U148: 0 | V148: 100000 | W148: 0.91203 | X148: 109645555 | Y148: 1988336 | Z148: 0 | AA148: 0 | AB148: 74795 | AC148: 0.67 | AD148: 36839 | AE148: 0.33 | AF148: 14802 | AG148: 0.135 | AH148: 220043 | AI148: 1.97111 | AJ148: 1559620 | AK148: 14.17032 | AL148: 0 | AM148: 0 | AN148: 0 | AO148: 0 | AP148: 0 | AQ148: 0
A149: 147 | B149: 2709 | C149: GRINNELL-NEWBURG | D149: 0 | E149: 0.1 | F149: 0.2 | G149: 2019 | H149: 0 | I149: 0 | J149: 0 | K149: 0 | L149: 0.67 | M149: 2016 | N149: 0 | O149: 4.05 | P149: 5814147 | Q149: 12.66272 | R149: 198788 | S149: 0.43294 | T149: 0 | U149: 0 | V149: 390001 | W149: 0.84939 | X149: 459154644 | Y149: 70819230 | Z149: 0 | AA149: 0 | AB149: 165755 | AC149: 0.31276 | AD149: 174891 | AE149: 0.33 | AF149: 0 | AG149: 0 | AH149: 806318 | AI149: 1.52143 | AJ149: 7351112 | AK149: 15.6763 | AL149: 567987 | AM149: 0.06 | AN149: 0 | AO149: 0 | AP149: 189329 | AQ149: 0.02
A150: 148 | B150: 2718 | C150: GRISWOLD | D150: 0 | E150: 0.1 | F150: 0.2 | G150: 2014 | H150: 0 | I150: 0 | J150: 0 | K150: 0 | L150: 0 | M150: 0 | N150: 0 | O150: 2.7 | P150: 2675227 | Q150: 13.66773 | R150: 30158 | S150: 0.15408 | T150: 0 | U150: 0 | V150: 74999 | W150: 0.38317 | X150: 195733066 | Y150: 2309039 | Z150: 0 | AA150: 0 | AB150: 0 | AC150: 0 | AD150: 65354 | AE150: 0.33 | AF150: 0 | AG150: 0 | AH150: 0 | AI150: 0 | AJ150: 2815580 | AK150: 14.3809 | AL150: 266469 | AM150: 0.12 | AN150: 0 | AO150: 0 | AP150: 0 | AQ150: 0
A151: 149 | B151: 2727 | C151: GRUNDY CENTER | D151: 0 | E151: 0.1 | F151: 0.2 | G151: 2011 | H151: 0 | I151: 0 | J151: 0 | K151: 0 | L151: 1.34 | M151: 2012 | N151: 0 | O151: 2.7 | P151: 1905964 | Q151: 11.4546 | R151: 46950 | S151: 0.28216 | T151: 0 | U151: 0 | V151: 199999 | W151: 1.20197 | X151: 166392885 | Y151: 7821511 | Z151: 0 | AA151: 0 | AB151: 233447 | AC151: 1.34 | AD151: 57491 | AE151: 0.33 | AF151: 0 | AG151: 0 | AH151: 321800 | AI151: 1.84715 | AJ151: 2718701 | AK151: 16.17372 | AL151: 230522 | AM151: 0.07 | AN151: 0 | AO151: 0 | AP151: 0 | AQ151: 0
A152: 150 | B152: 2754 | C152: GUTHRIE CENTER | D152: 0 | E152: 0.1 | F152: 0.2 | G152: 2012 | H152: 0 | I152: 0 | J152: 0 | K152: 0 | L152: 1.34 | M152: 2013 | N152: 0 | O152: 2.7 | P152: 1952202 | Q152: 14.27958 | R152: 120574 | S152: 0.88195 | T152: 0 | U152: 0 | V152: 25001 | W152: 0.18287 | X152: 136712824 | Y152: 937801 | Z152: 0 | AA152: 0 | AB152: 184452 | AC152: 1.34 | AD152: 45425 | AE152: 0.33 | AF152: 0 | AG152: 0 | AH152: 109270 | AI152: 0.79382 | AJ152: 2316350 | AK152: 16.92627 | AL152: 119779 | AM152: 0.07 | AN152: 0 | AO152: 0 | AP152: 0 | AQ152: 0
A153: 151 | B153: 2772 | C153: HAMBURG | D153: 0 | E153: 0.1 | F153: 0.2 | G153: 2011 | H153: 0 | I153: 0 | J153: 0 | K153: 0 | L153: 0 | M153: 0 | N153: 0 | O153: 0 | P153: 1521775 | Q153: 16.0881 | R153: 91253 | S153: 0.96472 | T153: 0 | U153: 0 | V153: 0 | W153: 0 | X153: 94590073 | Y153: 12215120 | Z153: 0 | AA153: 0 | AB153: 0 | AC153: 0 | AD153: 35246 | AE153: 0.33 | AF153: 0 | AG153: 0 | AH153: 0 | AI153: 0 | AJ153: 1557021 | AK153: 16.4181 | AL153: 53653 | AM153: 0.04 | AN153: 0 | AO153: 0 | AP153: 0 | AQ153: 0
A154: 152 | B154: 2781 | C154: HAMPTON-DUMONT | D154: 0 | E154: 0.1 | F154: 0.03 | G154: 2013 | H154: 0 | I154: 0 | J154: 0 | K154: 0 | L154: 0.675 | M154: 2017 | N154: 0 | O154: 2.7 | P154: 3794515 | Q154: 13.30637 | R154: 367560 | S154: 1.28894 | T154: 0 | U154: 0 | V154: 99999 | W154: 0.35067 | X154: 285165292 | Y154: 16282663 | Z154: 0 | AA154: 0 | AB154: 203477 | AC154: 0.675 | AD154: 99478 | AE154: 0.33 | AF154: 0 | AG154: 0 | AH154: 615738 | AI154: 2.0426 | AJ154: 4813207 | AK154: 16.70464 | AL154: 140380 | AM154: 0.03 | AN154: 0 | AO154: 0 | AP154: 0 | AQ154: 0
A155: 153 | B155: 2826 | C155: HARLAN | D155: 0 | E155: 0.1 | F155: 0.2 | G155: 2012 | H155: 0 | I155: 0 | J155: 0 | K155: 0 | L155: 0.67 | M155: 2011 | N155: 0 | O155: 2.7 | P155: 5148960 | Q155: 13.69077 | R155: 103997 | S155: 0.27652 | T155: 0 | U155: 0 | V155: 411999 | W155: 1.09548 | X155: 376089899 | Y155: 23413682 | Z155: 0 | AA155: 0 | AB155: 267667 | AC155: 0.67 | AD155: 131836 | AE155: 0.33 | AF155: 0 | AG155: 0 | AH155: 0 | AI155: 0 | AJ155: 5960462 | AK155: 15.78625 | AL155: 575514 | AM155: 0.08 | AN155: 0 | AO155: 0 | AP155: 0 | AQ155: 0
A156: 154 | B156: 2834 | C156: HARMONY | D156: 0 | E156: 0.1 | F156: 0.2 | G156: 2011 | H156: 0 | I156: 0 | J156: 0 | K156: 0 | L156: 0.67 | M156: 2020 | N156: 0 | O156: 4.05 | P156: 1305927 | Q156: 15.38267 | R156: 11513 | S156: 0.13561 | T156: 0 | U156: 0 | V156: 145000 | W156: 1.70797 | X156: 84896012 | Y156: 0 | Z156: 0 | AA156: 0 | AB156: 56880 | AC156: 0.67 | AD156: 0 | AE156: 0 | AF156: 0 | AG156: 0 | AH156: 259211 | AI156: 3.05328 | AJ156: 1767018 | AK156: 20.81392 | AL156: 158975 | AM156: 0.13 | AN156: 0 | AO156: 0 | AP156: 0 | AQ156: 0
A157: 155 | B157: 2846 | C157: HARRIS-LAKE PARK | D157: 0 | E157: 0.1 | F157: 0 | G157: 2015 | H157: 0 | I157: 0 | J157: 0 | K157: 0 | L157: 0 | M157: 0 | N157: 0 | O157: 2.7 | P157: 1198693 | Q157: 8.85308 | R157: 146940 | S157: 1.08524 | T157: 0 | U157: 0 | V157: 200000 | W157: 1.47712 | X157: 135398363 | Y157: 13118173 | Z157: 0 | AA157: 0 | AB157: 0 | AC157: 0 | AD157: 49010 | AE157: 0.33 | AF157: 0 | AG157: 0 | AH157: 283044 | AI157: 1.90581 | AJ157: 1730747 | AK157: 12.56601 | AL157: 0 | AM157: 0 | AN157: 0 | AO157: 0 | AP157: 0 | AQ157: 0
A158: 156 | B158: 2862 | C158: HARTLEY-MELVIN-SANBORN | D158: 0 | E158: 0.05 | F158: 0.2 | G158: 2011 | H158: 0 | I158: 0 | J158: 0 | K158: 0 | L158: 0.67 | M158: 2014 | N158: 0 | O158: 2.7 | P158: 2553729 | Q158: 11.7089 | R158: 29011 | S158: 0.13302 | T158: 0 | U158: 0 | V158: 135000 | W158: 0.61898 | X158: 218101498 | Y158: 27713062 | Z158: 0 | AA158: 0 | AB158: 66997 | AC158: 0.27255 | AD158: 81119 | AE158: 0.33 | AF158: 0 | AG158: 0 | AH158: 0 | AI158: 0 | AJ158: 2836845 | AK158: 12.93043 | AL158: 130266 | AM158: 0.04 | AN158: 0 | AO158: 0 | AP158: 97699 | AQ158: 0.03
A159: 157 | B159: 2977 | C159: HIGHLAND | D159: 0 | E159: 0.1 | F159: 0.2 | G159: 2011 | H159: 0 | I159: 0 | J159: 0 | K159: 0 | L159: 1.34 | M159: 2012 | N159: 0 | O159: 2.7 | P159: 1915482 | Q159: 12.52848 | R159: 25878 | S159: 0.16926 | T159: 0 | U159: 0 | V159: 185000 | W159: 1.21002 | X159: 152890243 | Y159: 74582049 | Z159: 0 | AA159: 0 | AB159: 304813 | AC159: 1.34 | AD159: 75066 | AE159: 0.33 | AF159: 0 | AG159: 0 | AH159: 232324 | AI159: 1.02133 | AJ159: 2712685 | AK159: 16.42983 | AL159: 254050 | AM159: 0.08 | AN159: 0 | AO159: 0 | AP159: 0 | AQ159: 0
A160: 158 | B160: 2988 | C160: HINTON | D160: 0 | E160: 0.1 | F160: 0.2 | G160: 2011 | H160: 0 | I160: 0 | J160: 0 | K160: 0 | L160: 0.67 | M160: 2016 | N160: 0 | O160: 2.7 | P160: 1852855 | Q160: 11.47917 | R160: 12334 | S160: 0.07641 | T160: 0 | U160: 0 | V160: 174999 | W160: 1.08419 | X160: 161410227 | Y160: 6520945 | Z160: 0 | AA160: 0 | AB160: 112514 | AC160: 0.67 | AD160: 55417 | AE160: 0.33 | AF160: 0 | AG160: 0 | AH160: 446475 | AI160: 2.65868 | AJ160: 2642260 | AK160: 16.22204 | AL160: 241120 | AM160: 0.07 | AN160: 0 | AO160: 0 | AP160: 0 | AQ160: 0
A161: 159 | B161: 2766 | C161: HLV | D161: 0 | E161: 0.1 | F161: 0.2 | G161: 2014 | H161: 0 | I161: 0 | J161: 0 | K161: 0 | L161: 1.34 | M161: 2021 | N161: 0 | O161: 2.7 | P161: 1184704 | Q161: 9.27512 | R161: 14769 | S161: 0.11563 | T161: 0 | U161: 0 | V161: 124300 | W161: 0.97315 | X161: 127729261 | Y161: 2051385 | Z161: 0 | AA161: 0 | AB161: 173906 | AC161: 1.34 | AD161: 42828 | AE161: 0.33 | AF161: 0 | AG161: 0 | AH161: 340778 | AI161: 2.6258 | AJ161: 1866516 | AK161: 14.54407 | AL161: 165105 | AM161: 0.09 | AN161: 0 | AO161: 0 | AP161: 0 | AQ161: 0
A162: 160 | B162: 3029 | C162: HOWARD-WINNESHIEK | D162: 0 | E162: 0.1 | F162: 0.2 | G162: 2011 | H162: 0 | I162: 0 | J162: 0 | K162: 0 | L162: 0.67 | M162: 2011 | N162: 0 | O162: 4.05 | P162: 4892241 | Q162: 12.17553 | R162: 198831 | S162: 0.49484 | T162: 0 | U162: 0 | V162: 400001 | W162: 0.9955 | X162: 401809260 | Y162: 5413345 | Z162: 0 | AA162: 0 | AB162: 52255 | AC162: 0.12832 | AD162: 134383 | AE162: 0.33 | AF162: 0 | AG162: 0 | AH162: 0 | AI162: 0 | AJ162: 5478880 | AK162: 13.62935 | AL162: 441173 | AM162: 0.08 | AN162: 0 | AO162: 0 | AP162: 220586 | AQ162: 0.04
A163: 161 | B163: 3033 | C163: HUBBARD-RADCLIFFE | D163: 0 | E163: 0.1 | F163: 0 | G163: 2014 | H163: 0 | I163: 0 | J163: 0 | K163: 0 | L163: 1.34 | M163: 2018 | N163: 0 | O163: 0 | P163: 2288215 | Q163: 11.48236 | R163: 216446 | S163: 1.08614 | T163: 0 | U163: 0 | V163: 132695 | W163: 0.66587 | X163: 199280889 | Y163: 0 | Z163: 0 | AA163: 0 | AB163: 267036 | AC163: 1.34 | AD163: 65763 | AE163: 0.33 | AF163: 0 | AG163: 0 | AH163: 0 | AI163: 0 | AJ163: 2753709 | AK163: 13.81823 | AL163: 0 | AM163: 0 | AN163: 0 | AO163: 0 | AP163: 0 | AQ163: 0
A164: 162 | B164: 3042 | C164: HUDSON | D164: 0 | E164: 0.1 | F164: 0.2 | G164: 2011 | H164: 0 | I164: 0 | J164: 0 | K164: 0 | L164: 1.34 | M164: 2014 | N164: 0 | O164: 2.7 | P164: 2148589 | Q164: 14.08111 | R164: 87956 | S164: 0.57643 | T164: 0 | U164: 0 | V164: 175000 | W164: 1.14689 | X164: 152586654 | Y164: 8371867 | Z164: 0 | AA164: 0 | AB164: 215684 | AC164: 1.34 | AD164: 53116 | AE164: 0.33 | AF164: 0 | AG164: 0 | AH164: 0 | AI164: 0 | AJ164: 2592389 | AK164: 16.898 | AL164: 202144 | AM164: 0.06 | AN164: 0 | AO164: 0 | AP164: 0 | AQ164: 0
A165: 163 | B165: 3060 | C165: HUMBOLDT | D165: 0 | E165: 0.1 | F165: 0.2 | G165: 2013 | H165: 0 | I165: 0 | J165: 0 | K165: 0 | L165: 0.67 | M165: 2018 | N165: 0 | O165: 2.7 | P165: 3801596 | Q165: 11.08426 | R165: 37179 | S165: 0.1084 | T165: 0 | U165: 0 | V165: 260001 | W165: 0.75808 | X165: 342972478 | Y165: 15217033 | Z165: 0 | AA165: 0 | AB165: 239987 | AC165: 0.67 | AD165: 118203 | AE165: 0.33 | AF165: 0 | AG165: 0 | AH165: 0 | AI165: 0 | AJ165: 4419787 | AK165: 12.84234 | AL165: 494667 | AM165: 0.07 | AN165: 0 | AO165: 0 | AP165: 0 | AQ165: 0
A166: 164 | B166: 3996 | C166: IKM | D166: 0 | E166: 0.1 | F166: 0.2 | G166: 2014 | H166: 0 | I166: 0 | J166: 0 | K166: 0 | L166: 0 | M166: 0 | N166: 0 | O166: 0 | P166: 1976234 | Q166: 12.51594 | R166: 4208 | S166: 0.02665 | T166: 0 | U166: 0 | V166: 15000 | W166: 0.095 | X166: 157897338 | Y166: 6716139 | Z166: 0 | AA166: 0 | AB166: 0 | AC166: 0 | AD166: 54322 | AE166: 0.33 | AF166: 0 | AG166: 0 | AH166: 0 | AI166: 0 | AJ166: 2045556 | AK166: 12.94094 | AL166: 203698 | AM166: 0.14 | AN166: 0 | AO166: 0 | AP166: 0 | AQ166: 0
A167: 165 | B167: 3105 | C167: INDEPENDENCE | D167: 0 | E167: 0.1 | F167: 0.09 | G167: 2011 | H167: 0 | I167: 0 | J167: 0 | K167: 0 | L167: 0.4 | M167: 2013 | N167: 0 | O167: 2.7 | P167: 4275294 | Q167: 13.08826 | R167: 5668 | S167: 0.01735 | T167: 0 | U167: 0 | V167: 350000 | W167: 1.07148 | X167: 326651067 | Y167: 33370714 | Z167: 0 | AA167: 0 | AB167: 144009 | AC167: 0.4 | AD167: 118807 | AE167: 0.33 | AF167: 0 | AG167: 0 | AH167: 0 | AI167: 0 | AJ167: 4888110 | AK167: 14.88974 | AL167: 586073 | AM167: 0.08 | AN167: 0 | AO167: 0 | AP167: 0 | AQ167: 0
A168: 166 | B168: 3114 | C168: INDIANOLA | D168: 0 | E168: 0.1 | F168: 0.2 | G168: 2012 | H168: 0 | I168: 0 | J168: 0 | K168: 0 | L168: 1.34 | M168: 2019 | N168: 0 | O168: 4.05 | P168: 9949393 | Q168: 15.17431 | R168: 455974 | S168: 0.69543 | T168: 0 | U168: 0 | V168: 689998 | W168: 1.05235 | X168: 655673523 | Y168: 27011147 | Z168: 0 | AA168: 0 | AB168: 914797 | AC168: 1.34 | AD168: 225286 | AE168: 0.33 | AF168: 0 | AG168: 0 | AH168: 2048054 | AI168: 3 | AJ168: 13827528 | AK168: 20.89666 | AL168: 858664 | AM168: 0.05 | AN168: 0 | AO168: 0 | AP168: 0 | AQ168: 0
A169: 167 | B169: 3119 | C169: INTERSTATE 35 | D169: 0 | E169: 0 | F169: 0 | G169: 0 | H169: 0 | I169: 0 | J169: 0 | K169: 0 | L169: 1.34 | M169: 2018 | N169: 0 | O169: 4.05 | P169: 2346381 | Q169: 12.70732 | R169: 0 | S169: 0 | T169: 0 | U169: 0 | V169: 200000 | W169: 1.08314 | X169: 184647991 | Y169: 0 | Z169: 0 | AA169: 0 | AB169: 247428 | AC169: 1.34 | AD169: 60934 | AE169: 0.33 | AF169: 0 | AG169: 0 | AH169: 547991 | AI169: 2.96776 | AJ169: 3402734 | AK169: 18.42822 | AL169: 0 | AM169: 0 | AN169: 0 | AO169: 0 | AP169: 0 | AQ169: 0
A170: 168 | B170: 3141 | C170: IOWA CITY | D170: 0 | E170: 0.1 | F170: 0.2 | G170: 2015 | H170: 0 | I170: 0 | J170: 0 | K170: 0 | L170: 1.34 | M170: 2015 | N170: 0 | O170: 2.7 | P170: 50081516 | Q170: 11.69727 | R170: 671616 | S170: 0.15687 | T170: 0 | U170: 0 | V170: 2549359 | W170: 0.59544 | X170: 4281470446 | Y170: 362170241 | Z170: 0 | AA170: 0 | AB170: 6222479 | AC170: 1.34 | AD170: 1532401 | AE170: 0.33 | AF170: 0 | AG170: 0 | AH170: 3375973 | AI170: 0.72701 | AJ170: 63761728 | AK170: 14.68972 | AL170: 5060561 | AM170: 0.05 | AN170: 0 | AO170: 0 | AP170: 0 | AQ170: 0
A171: 169 | B171: 3150 | C171: IOWA FALLS | D171: 0 | E171: 0.1 | F171: 0.2 | G171: 2012 | H171: 0 | I171: 0 | J171: 0 | K171: 0 | L171: 0 | M171: 0 | N171: 0 | O171: 2.07 | P171: 3321821 | Q171: 12.13476 | R171: 28477 | S171: 0.10403 | T171: 0 | U171: 0 | V171: 298734 | W171: 1.09129 | X171: 273744243 | Y171: 13671110 | Z171: 0 | AA171: 0 | AB171: 0 | AC171: 0 | AD171: 94847 | AE171: 0.33 | AF171: 0 | AG171: 0 | AH171: 298912 | AI171: 1.04 | AJ171: 4014314 | AK171: 14.59605 | AL171: 436355 | AM171: 0.07 | AN171: 0 | AO171: 0 | AP171: 0 | AQ171: 0
A172: 170 | B172: 3154 | C172: IOWA VALLEY | D172: 0 | E172: 0.1 | F172: 0.2 | G172: 2013 | H172: 0 | I172: 0 | J172: 0 | K172: 0 | L172: 1.34 | M172: 2020 | N172: 0 | O172: 2.7 | P172: 1707875 | Q172: 14.26939 | R172: 16752 | S172: 0.13996 | T172: 0 | U172: 0 | V172: 125000 | W172: 1.04438 | X172: 119688001 | Y172: 4887165 | Z172: 0 | AA172: 0 | AB172: 11713 | AC172: 0.09402 | AD172: 41110 | AE172: 0.33 | AF172: 0 | AG172: 0 | AH172: 80846 | AI172: 0.64897 | AJ172: 1966544 | AK172: 16.38676 | AL172: 232828 | AM172: 0.09 | AN172: 0 | AO172: 0 | AP172: 155219 | AQ172: 0.06
A173: 171 | B173: 3186 | C173: JANESVILLE | D173: 0 | E173: 0.1 | F173: 0.1 | G173: 2013 | H173: 0 | I173: 0 | J173: 0 | K173: 0 | L173: 0.67 | M173: 2011 | N173: 0 | O173: 2.7 | P173: 918724 | Q173: 9.67685 | R173: 5694 | S173: 0.05997 | T173: 0 | U173: 0 | V173: 110000 | W173: 1.15862 | X173: 94940446 | Y173: 688719 | Z173: 0 | AA173: 0 | AB173: 64072 | AC173: 0.67 | AD173: 31558 | AE173: 0.33 | AF173: 0 | AG173: 0 | AH173: 0 | AI173: 0 | AJ173: 1124354 | AK173: 11.83547 | AL173: 152835 | AM173: 0.08 | AN173: 0 | AO173: 0 | AP173: 0 | AQ173: 0
A174: 172 | B174: 3195 | C174: JEFFERSON-SCRANTON (JEFFERSON) | D174: 0 | E174: 0.1 | F174: 0.07 | G174: 2015 | H174: 0 | I174: 0 | J174: 0 | K174: 0 | L174: 0 | M174: 0 | N174: 0 | O174: 2.7 | P174: 3055769 | Q174: 13.91056 | R174: 147320 | S174: 0.67063 | T174: 0 | U174: 0 | V174: 311023 | W174: 1.41585 | X174: 219672611 | Y174: 3056304 | Z174: 0 | AA174: 0 | AB174: 0 | AC174: 0 | AD174: 73501 | AE174: 0.33 | AF174: 0 | AG174: 0 | AH174: 0 | AI174: 0 | AJ174: 3440293 | AK174: 15.65641 | AL174: 330600 | AM174: 0.07 | AN174: 0 | AO174: 0 | AP174: 0 | AQ174: 0
A175: 173 | B175: 5841 | C175: JEFFERSON-SCRANTON (SCRANTON) | D175: 0 | E175: 0 | F175: 0 | G175: 0 | H175: 0 | I175: 0 | J175: 0 | K175: 0 | L175: 0 | M175: 0 | N175: 0 | O175: 2.7 | P175: 874170 | Q175: 13.91056 | R175: 0 | S175: 0 | T175: 0 | U175: 0 | V175: 88975 | W175: 1.41585 | X175: 62842211 | Y175: 0 | Z175: 0 | AA175: 0 | AB175: 0 | AC175: 0 | AD175: 20738 | AE175: 0.33 | AF175: 0 | AG175: 0 | AH175: 0 | AI175: 0 | AJ175: 983883 | AK175: 15.65641 | AL175: 0 | AM175: 0 | AN175: 0 | AO175: 0 | AP175: 0 | AQ175: 0
A176: 174 | B176: 3204 | C176: JESUP | D176: 0 | E176: 0 | F176: 0 | G176: 0 | H176: 0 | I176: 0 | J176: 0 | K176: 0 | L176: 0 | M176: 0 | N176: 0 | O176: 2.7 | P176: 2190782 | Q176: 10.43312 | R176: 0 | S176: 0 | T176: 0 | U176: 0 | V176: 70000 | W176: 0.33336 | X176: 209983419 | Y176: 3151815 | Z176: 0 | AA176: 0 | AB176: 0 | AC176: 0 | AD176: 70335 | AE176: 0.33 | AF176: 0 | AG176: 0 | AH176: 175698 | AI176: 0.82435 | AJ176: 2506815 | AK176: 11.92083 | AL176: 0 | AM176: 0 | AN176: 0 | AO176: 0 | AP176: 0 | AQ176: 0
A177: 175 | B177: 3231 | C177: JOHNSTON | D177: 0 | E177: 0.1 | F177: 0 | G177: 2016 | H177: 0 | I177: 0 | J177: 0 | K177: 0 | L177: 1.34 | M177: 2013 | N177: 0 | O177: 2.7 | P177: 24493821 | Q177: 14.61345 | R177: 2685984 | S177: 1.60251 | T177: 0 | U177: 0 | V177: 950005 | W177: 0.56679 | X177: 1676114847 | Y177: 97614060 | Z177: 0 | AA177: 0 | AB177: 2376797 | AC177: 1.34 | AD177: 585331 | AE177: 0.33 | AF177: 0 | AG177: 0 | AH177: 877677 | AI177: 0.49482 | AJ177: 29283631 | AK177: 17.34506 | AL177: 0 | AM177: 0 | AN177: 0 | AO177: 0 | AP177: 0 | AQ177: 0
A178: 176 | B178: 3312 | C178: KEOKUK | D178: 0 | E178: 0.1 | F178: 0 | G178: 2013 | H178: 0 | I178: 0 | J178: 0 | K178: 0 | L178: 0 | M178: 0 | N178: 0 | O178: 2.7 | P178: 5151871 | Q178: 15.51899 | R178: 750625 | S178: 2.26111 | T178: 0 | U178: 0 | V178: 800000 | W178: 2.40984 | X178: 331972063 | Y178: 36391570 | Z178: 0 | AA178: 0 | AB178: 0 | AC178: 0 | AD178: 121560 | AE178: 0.33 | AF178: 0 | AG178: 0 | AH178: 130364 | AI178: 0.3539 | AJ178: 6203795 | AK178: 18.61273 | AL178: 0 | AM178: 0 | AN178: 0 | AO178: 0 | AP178: 0 | AQ178: 0
A179: 177 | B179: 3330 | C179: KEOTA | D179: 0 | E179: 0.1 | F179: 0.2 | G179: 2014 | H179: 0 | I179: 0 | J179: 0 | K179: 0 | L179: 0 | M179: 0 | N179: 0 | O179: 2.7 | P179: 1743005 | Q179: 11.10184 | R179: 28328 | S179: 0.18043 | T179: 0 | U179: 0 | V179: 60000 | W179: 0.38216 | X179: 157001439 | Y179: 0 | Z179: 0 | AA179: 0 | AB179: 0 | AC179: 0 | AD179: 51810 | AE179: 0.33 | AF179: 0 | AG179: 0 | AH179: 180147 | AI179: 1.14742 | AJ179: 2034962 | AK179: 12.96142 | AL179: 145373 | AM179: 0.1 | AN179: 0 | AO179: 0 | AP179: 0 | AQ179: 0
A180: 178 | B180: 3348 | C180: KINGSLEY-PIERSON | D180: 0 | E180: 0.1 | F180: 0.2 | G180: 2011 | H180: 0 | I180: 0 | J180: 0 | K180: 0 | L180: 0.67 | M180: 2017 | N180: 0 | O180: 4.05 | P180: 1838364 | Q180: 14.1114 | R180: 212368 | S180: 1.63015 | T180: 0 | U180: 0 | V180: 50000 | W180: 0.3838 | X180: 130275070 | Y180: 2190599 | Z180: 0 | AA180: 0 | AB180: 20568 | AC180: 0.15527 | AD180: 0 | AE180: 0 | AF180: 0 | AG180: 0 | AH180: 181155 | AI180: 1.36756 | AJ180: 2090087 | AK180: 16.01803 | AL180: 0 | AM180: 0 | AN180: 0 | AO180: 0 | AP180: 68184 | AQ180: 0.03
A181: 179 | B181: 3375 | C181: KNOXVILLE | D181: 0 | E181: 0.07 | F181: 0.2 | G181: 2017 | H181: 0 | I181: 0 | J181: 0 | K181: 0 | L181: 0.67 | M181: 2015 | N181: 0 | O181: 4.05 | P181: 4288926 | Q181: 12.76909 | R181: 30876 | S181: 0.09192 | T181: 0 | U181: 0 | V181: 500000 | W181: 1.48861 | X181: 335883478 | Y181: 8867393 | Z181: 0 | AA181: 0 | AB181: 0 | AC181: 0 | AD181: 53767 | AE181: 0.15596 | AF181: 0 | AG181: 0 | AH181: 780533 | AI181: 2.26405 | AJ181: 5623226 | AK181: 16.67771 | AL181: 463930 | AM181: 0.06 | AN181: 0 | AO181: 0 | AP181: 0 | AQ181: 0
A182: 180 | B182: 3420 | C182: LAKE MILLS | D182: 0 | E182: 0.1 | F182: 0.05 | G182: 2015 | H182: 0 | I182: 0 | J182: 0 | K182: 0 | L182: 0.67 | M182: 2019 | N182: 0 | O182: 2.7 | P182: 2529244 | Q182: 12.15351 | R182: 143939 | S182: 0.69165 | T182: 0 | U182: 0 | V182: 175000 | W182: 0.84091 | X182: 208108115 | Y182: 30460886 | Z182: 0 | AA182: 0 | AB182: 10268 | AC182: 0.04304 | AD182: 78728 | AE182: 0.33 | AF182: 0 | AG182: 0 | AH182: 315076 | AI182: 1.32069 | AJ182: 3108316 | AK182: 14.68815 | AL182: 149572 | AM182: 0.05 | AN182: 0 | AO182: 0 | AP182: 149572 | AQ182: 0.05
A183: 181 | B183: 3465 | C183: LAMONI | D183: 0 | E183: 0.07 | F183: 0.2 | G183: 2012 | H183: 0 | I183: 0 | J183: 0 | K183: 0 | L183: 1.34 | M183: 2013 | N183: 0 | O183: 4.05 | P183: 993854 | Q183: 13.18479 | R183: 2910 | S183: 0.03861 | T183: 0 | U183: 0 | V183: 75000 | W183: 0.99497 | X183: 75378825 | Y183: 655553 | Z183: 0 | AA183: 0 | AB183: 82821 | AC183: 1.08926 | AD183: 25091 | AE183: 0.33 | AF183: 0 | AG183: 0 | AH183: 237633 | AI183: 3.12534 | AJ183: 1414399 | AK183: 18.72436 | AL183: 95323 | AM183: 0.1 | AN183: 0 | AO183: 0 | AP183: 19065 | AQ183: 0.02
A184: 182 | B184: 3537 | C184: LAURENS-MARATHON | D184: 0 | E184: 0.1 | F184: 0.2 | G184: 2015 | H184: 0 | I184: 0 | J184: 0 | K184: 0 | L184: 1.34 | M184: 2018 | N184: 0 | O184: 2.7 | P184: 1656875 | Q184: 12.99811 | R184: 111691 | S184: 0.87621 | T184: 0 | U184: 0 | V184: 121463 | W184: 0.95287 | X184: 127470458 | Y184: 2413338 | Z184: 0 | AA184: 0 | AB184: 113205 | AC184: 0.87159 | AD184: 42862 | AE184: 0.33 | AF184: 0 | AG184: 0 | AH184: 155936 | AI184: 1.20058 | AJ184: 2090341 | AK184: 16.35315 | AL184: 62577 | AM184: 0.04 | AN184: 0 | AO184: 0 | AP184: 62577 | AQ184: 0.04
A185: 183 | B185: 7922 | C185: LAURENS-MARATHON FROM S CLAY | D185: 0 | E185: 0 | F185: 0 | G185: 0 | H185: 0 | I185: 0 | J185: 0 | K185: 0 | L185: 0 | M185: 0 | N185: 0 | O185: 0 | P185: 44547 | Q185: 11.99811 | R185: 0 | S185: 0 | T185: 0 | U185: 0 | V185: 3538 | W185: 0.95287 | X185: 3712805 | Y185: 0 | Z185: 0 | AA185: 0 | AB185: 3236 | AC185: 0.87159 | AD185: 1225 | AE185: 0.33 | AF185: 0 | AG185: 0 | AH185: 4458 | AI185: 1.20058 | AJ185: 57004 | AK185: 15.35315 | AL185: 0 | AM185: 0 | AN185: 0 | AO185: 0 | AP185: 0 | AQ185: 0
A186: 184 | B186: 3555 | C186: LAWTON-BRONSON | D186: 0 | E186: 0.05 | F186: 0.2 | G186: 2014 | H186: 0 | I186: 0 | J186: 0 | K186: 0 | L186: 0 | M186: 0 | N186: 0 | O186: 4.05 | P186: 1829996 | Q186: 11.52463 | R186: 21038 | S186: 0.13249 | T186: 0 | U186: 0 | V186: 122000 | W186: 0.76831 | X186: 158790037 | Y186: 2786000 | Z186: 0 | AA186: 0 | AB186: 0 | AC186: 0 | AD186: 53320 | AE186: 0.33 | AF186: 0 | AG186: 0 | AH186: 521949 | AI186: 3.23036 | AJ186: 2527265 | AK186: 15.8533 | AL186: 112688 | AM186: 0.04 | AN186: 0 | AO186: 0 | AP186: 0 | AQ186: 0
A187: 185 | B187: 3600 | C187: LE MARS | D187: 0 | E187: 0 | F187: 0 | G187: 0 | H187: 0 | I187: 0 | J187: 0 | K187: 0 | L187: 1 | M187: 2012 | N187: 0 | O187: 2.7 | P187: 6211908 | Q187: 11.93043 | R187: 0 | S187: 0 | T187: 0 | U187: 0 | V187: 430002 | W187: 0.82585 | X187: 520677607 | Y187: 196792308 | Z187: 0 | AA187: 0 | AB187: 717470 | AC187: 1 | AD187: 0 | AE187: 0 | AF187: 0 | AG187: 0 | AH187: 0 | AI187: 0 | AJ187: 7359380 | AK187: 13.75628 | AL187: 0 | AM187: 0 | AN187: 0 | AO187: 0 | AP187: 0 | AQ187: 0
A188: 186 | B188: 3609 | C188: LENOX | D188: 0 | E188: 0.1 | F188: 0.17 | G188: 2012 | H188: 0 | I188: 0 | J188: 0 | K188: 0 | L188: 1.34 | M188: 2013 | N188: 0 | O188: 2.7 | P188: 1211427 | Q188: 12.94506 | R188: 3462 | S188: 0.03699 | T188: 0 | U188: 0 | V188: 120000 | W188: 1.2823 | X188: 93582168 | Y188: 0 | Z188: 0 | AA188: 0 | AB188: 67209 | AC188: 0.71818 | AD188: 30882 | AE188: 0.33 | AF188: 0 | AG188: 0 | AH188: 140445 | AI188: 1.50077 | AJ188: 1569963 | AK188: 16.77631 | AL188: 160026 | AM188: 0.11 | AN188: 0 | AO188: 0 | AP188: 58191 | AQ188: 0.04
A189: 187 | B189: 3645 | C189: LEWIS CENTRAL | D189: 0 | E189: 0.1 | F189: 0.2 | G189: 2016 | H189: 0 | I189: 0 | J189: 0 | K189: 0 | L189: 0.5 | M189: 2013 | N189: 0 | O189: 2.7 | P189: 9412296 | Q189: 10.49976 | R189: 243251 | S189: 0.27136 | T189: 0 | U189: 0 | V189: 448215 | W189: 0.5 | X189: 896429609 | Y189: 54278446 | Z189: 0 | AA189: 0 | AB189: 475354 | AC189: 0.5 | AD189: 313734 | AE189: 0.33 | AF189: 0 | AG189: 0 | AH189: 1388309 | AI189: 1.46029 | AJ189: 12037908 | AK189: 13.29005 | AL189: 988068 | AM189: 0.06 | AN189: 0 | AO189: 0 | AP189: 0 | AQ189: 0
A190: 188 | B190: 3705 | C190: LINEVILLE-CLIO | D190: 0 | E190: 0.1 | F190: 0.2 | G190: 2015 | H190: 0 | I190: 0 | J190: 0 | K190: 0 | L190: 0.67 | M190: 2016 | N190: 0 | O190: 2.7 | P190: 446849 | Q190: 13.87652 | R190: 23550 | S190: 0.73133 | T190: 0 | U190: 0 | V190: 120000 | W190: 3.7265 | X190: 32201798 | Y190: 0 | Z190: 0 | AA190: 0 | AB190: 21575 | AC190: 0.66999 | AD190: 0 | AE190: 0 | AF190: 0 | AG190: 0 | AH190: 46647 | AI190: 1.44858 | AJ190: 635071 | AK190: 19.72159 | AL190: 24152 | AM190: 0.1 | AN190: 0 | AO190: 0 | AP190: 0 | AQ190: 0
A191: 189 | B191: 3715 | C191: LINN-MAR | D191: 0 | E191: 0.1 | F191: 0 | G191: 2016 | H191: 0 | I191: 0 | J191: 0 | K191: 0 | L191: 0.67 | M191: 2015 | N191: 0.135 | O191: 4.05 | P191: 23060349 | Q191: 15.1183 | R191: 2772640 | S191: 1.81773 | T191: 0 | U191: 0 | V191: 1749062 | W191: 1.14668 | X191: 1525326887 | Y191: 46241476 | Z191: 0 | AA191: 0 | AB191: 1052951 | AC191: 0.67 | AD191: 518618 | AE191: 0.33 | AF191: 205919 | AG191: 0.135 | AH191: 3674971 | AI191: 2.33841 | AJ191: 30261870 | AK191: 19.73839 | AL191: 0 | AM191: 0 | AN191: 0 | AO191: 0 | AP191: 0 | AQ191: 0
A192: 190 | B192: 3744 | C192: LISBON | D192: 0 | E192: 0.1 | F192: 0.1 | G192: 2011 | H192: 0 | I192: 0 | J192: 0 | K192: 0 | L192: 0.67 | M192: 2015 | N192: 0 | O192: 2.7 | P192: 1754436 | Q192: 15.25982 | R192: 28035 | S192: 0.24384 | T192: 0 | U192: 0 | V192: 155000 | W192: 1.34817 | X192: 114970965 | Y192: 3574380 | Z192: 0 | AA192: 0 | AB192: 79425 | AC192: 0.67 | AD192: 39120 | AE192: 0.33 | AF192: 0 | AG192: 0 | AH192: 145778 | AI192: 1.22972 | AJ192: 2173759 | AK192: 18.83771 | AL192: 218320 | AM192: 0.08 | AN192: 0 | AO192: 0 | AP192: 0 | AQ192: 0
A193: 191 | B193: 3798 | C193: LOGAN-MAGNOLIA | D193: 0 | E193: 0.1 | F193: 0.2 | G193: 2013 | H193: 0 | I193: 0 | J193: 0 | K193: 0 | L193: 0 | M193: 0 | N193: 0 | O193: 4.05 | P193: 1786055 | Q193: 14.40628 | R193: 89909 | S193: 0.7252 | T193: 0 | U193: 0 | V193: 200000 | W193: 1.6132 | X193: 123977498 | Y193: 0 | Z193: 0 | AA193: 0 | AB193: 0 | AC193: 0 | AD193: 40913 | AE193: 0.33 | AF193: 0 | AG193: 0 | AH193: 169000 | AI193: 1.36315 | AJ193: 2195968 | AK193: 17.71263 | AL193: 159679 | AM193: 0.07 | AN193: 0 | AO193: 0 | AP193: 0 | AQ193: 0
A194: 192 | B194: 3816 | C194: LONE TREE | D194: 0 | E194: 0.1 | F194: 0.1 | G194: 2011 | H194: 0 | I194: 0 | J194: 0 | K194: 0 | L194: 0.67 | M194: 2016 | N194: 0 | O194: 2.7 | P194: 1216864 | Q194: 9.8871 | R194: 897 | S194: 0.00729 | T194: 0 | U194: 0 | V194: 65000 | W194: 0.52813 | X194: 123075883 | Y194: 8163136 | Z194: 0 | AA194: 0 | AB194: 87930 | AC194: 0.67 | AD194: 43309 | AE194: 0.33 | AF194: 0 | AG194: 0 | AH194: 160600 | AI194: 1.22372 | AJ194: 1573703 | AK194: 12.63895 | AL194: 188962 | AM194: 0.1 | AN194: 0 | AO194: 0 | AP194: 0 | AQ194: 0
A195: 193 | B195: 3841 | C195: LOUISA-MUSCATINE | D195: 0 | E195: 0.1 | F195: 0.2 | G195: 2013 | H195: 0 | I195: 0 | J195: 0 | K195: 0 | L195: 0.67 | M195: 2015 | N195: 0 | O195: 2.7 | P195: 2314804 | Q195: 10.05235 | R195: 98645 | S195: 0.42838 | T195: 0 | U195: 0 | V195: 300000 | W195: 1.30279 | X195: 230274863 | Y195: 1017009 | Z195: 0 | AA195: 0 | AB195: 125263 | AC195: 0.54158 | AD195: 76326 | AE195: 0.33 | AF195: 0 | AG195: 0 | AH195: 430899 | AI195: 1.86301 | AJ195: 3247292 | AK195: 14.08973 | AL195: 267316 | AM195: 0.09 | AN195: 0 | AO195: 0 | AP195: 29702 | AQ195: 0.01
A196: 194 | B196: 3897 | C196: LU VERNE | D196: 0 | E196: 0.1 | F196: 0.2 | G196: 2011 | H196: 0 | I196: 0.25 | J196: 0 | K196: 0 | L196: 0 | M196: 0 | N196: 0 | O196: 0 | P196: =ROUND(($X196/1000)*Q196,0) -> 669294 | Q196: 9.90275 | R196: 6583 | S196: =ROUND(R196/(X196/1000),5) -> 0.0974 | T196: 97737 | U196: 1.4461 | V196: =ROUND(($X196/1000)*W196,0) -> 50000 | W196: 0.73979 | X196: 67586671 | Y196: 0 | Z196: =ROUND(($X196/1000)*AA196,0) -> 0 | AA196: 0 | AB196: =ROUND((($X196+$Y196)/1000)*AC196,0) -> 0 | AC196: 0 | AD196: =ROUND((($X196+$Y196)/1000)*AE196,0) -> 22304 | AE196: 0.33 | AF196: =ROUND(($X196/1000)*AG196,0) -> 0 | AG196: 0 | AH196: =ROUND((($X196+$Y196)/1000)*AI196,0) -> 0 | AI196: 0 | AJ196: =P196+V196+Z196+AB196+AD196+AF196+AH196 -> 741598 | AK196: 10.97254 | AL196: 36665 | AM196: 0.1 | AN196: 18333 | AO196: 0.05 | AP196: 0 | AQ196: 0
A197: 195 | B197: 3906 | C197: LYNNVILLE-SULLY | D197: 0 | E197: 0.1 | F197: 0.2 | G197: 2011 | H197: 0 | I197: 0 | J197: 0 | K197: 0 | L197: 0.67 | M197: 2015 | N197: 0 | O197: 2.7 | P197: 1791592 | Q197: 11.73702 | R197: 66966 | S197: 0.43871 | T197: 0 | U197: =ROUND(T197/(X197/1000),5) -> 0 | V197: 75000 | W197: 0.49134 | X197: 152644503 | Y197: 4570034 | Z197: 0 | AA197: 0 | AB197: 54031 | AC197: 0.34368 | AD197: 0 | AE197: 0 | AF197: 0 | AG197: 0 | AH197: 40168 | AI197: 0.2555 | AJ197: 1960791 | AK197: 12.82754 | AL197: 153910 | AM197: 0.06 | AN197: 0 | AO197: 0 | AP197: 51303 | AQ197: 0.02
A198: 196 | B198: 3942 | C198: MADRID | D198: 0 | E198: 0.1 | F198: 0.2 | G198: 2014 | H198: 0 | I198: 0 | J198: 0 | K198: 0 | L198: 1 | M198: 2015 | N198: 0 | O198: 2.7 | P198: 1244988 | Q198: 12.93801 | R198: 23459 | S198: 0.24379 | T198: 0 | U198: 0 | V198: 240000 | W198: 2.4941 | X198: 96227135 | Y198: 2516403 | Z198: 0 | AA198: 0 | AB198: 98744 | AC198: 1 | AD198: 32585 | AE198: 0.33 | AF198: 0 | AG198: 0 | AH198: 53300 | AI198: 0.53978 | AJ198: 1669617 | AK198: 17.30189 | AL198: 186891 | AM198: 0.06 | AN198: 0 | AO198: 0 | AP198: 0 | AQ198: 0
A199: 197 | B199: 3978 | C199: MALVERN | D199: 0 | E199: 0.1 | F199: 0.2 | G199: 2015 | H199: 0 | I199: 0 | J199: 0 | K199: 0 | L199: 1.34 | M199: 2018 | N199: 0 | O199: 0 | P199: 1761282 | Q199: 13.82035 | R199: 61504 | S199: 0.48261 | T199: 0 | U199: 0 | V199: 50000 | W199: 0.39234 | X199: 127441179 | Y199: 122106 | Z199: 0 | AA199: 0 | AB199: 75213 | AC199: 0.58961 | AD199: 42096 | AE199: 0.33 | AF199: 0 | AG199: 0 | AH199: 0 | AI199: 0 | AJ199: 1928591 | AK199: 15.1323 | AL199: 109398 | AM199: 0.08 | AN199: 0 | AO199: 0 | AP199: 95723 | AQ199: 0.07
A200: 198 | B200: 4014 | C200: MANNING | D200: 0 | E200: 0.1 | F200: 0.2 | G200: 2011 | H200: 0 | I200: 0 | J200: 0 | K200: 0 | L200: 1 | M200: 2012 | N200: 0 | O200: 2.7 | P200: 1558019 | Q200: 14.80111 | R200: 9230 | S200: 0.08768 | T200: 0 | U200: 0 | V200: 70000 | W200: 0.665 | X200: 105263650 | Y200: 2483738 | Z200: 0 | AA200: 0 | AB200: 5899 | AC200: 0.05475 | AD200: 35557 | AE200: 0.33 | AF200: 0 | AG200: 0 | AH200: 0 | AI200: 0 | AJ200: 1669475 | AK200: 15.85086 | AL200: 174596 | AM200: 0.12 | AN200: 0 | AO200: 0 | AP200: 101848 | AQ200: 0.07
... 184 more rows
